{"text_format":"1","workbook":"xlsx","n_sheets":2,"sheets":["r13","Base13"],"not_rendered":{"charts":0,"images":7,"macros":1,"external_links":0,"defined_names":9,"comments":0,"pivot_tables":0},"unopened":[],"bounds":{"document_bytes":16777216,"sheet_cells":100000,"rows_first":2000,"rows_last":500,"rows_between":2000,"halvings":0,"cell_chars":16384,"cell_head_chars":4096},"cells_cut":0,"cells_raw":0,"read":"whole","date_system":"1900"}

{"sheet":"r13","index":0,"n_rows":5100,"n_cols":7,"rows_kept":5100,"cut":false,"hidden":false,"merged":[[0,5,0,6],[0,0,0,3]]}
["R13 - Landfordeling av balanseposter i rapportering for \nbanker og kreditt- og finansieringsforetak",null,null,null,null,"RA-0780\nmars 2018"]
[]
["Datasentralnummer (3 siffer)"]
["Organisasjonsnr. (9 siffer)"]
["Rapport nr. (13, 2 siffer)",13]
["Periode (år og måned; ååååmm, 6 siffer)  "]
[]
[]
["Veiledning for malen - se vår hjemmeside"]
[]
["LANDFORDELING AV BALANSEPOSTER","KODE","LØPETID","SEKTOR","LAND","VALUTA","VERDI"]
["",null,"","",0,""]
[null,{"$f":"IF(ISBLANK(A13),\"\",MID(A13,1,10))","v":""}]
[null,{"$f":"IF(ISBLANK(A14),\"\",MID(A14,1,10))","v":""}]
[null,""]
[null,""]
[null,""]
[null,""]
[null,""]
[null,""]
[null,""]
[null,""]
[null,""]
[null,""]
[null,""]
[null,""]
[null,""]
[null,""]
[null,""]
[null,""]
[null,""]
[null,""]
[null,""]
[null,""]
[null,""]
[null,""]
[null,""]
[null,""]
[null,""]
[null,""]
[null,""]
[null,""]
[null,""]
[null,""]
[null,""]
[null,""]
[null,""]
[null,""]
[null,""]
[null,""]
[null,""]
[null,""]
[null,""]
[null,""]
[null,""]
[null,""]
[null,""]
[null,""]
[null,""]
[null,""]
[null,""]
[null,""]
[null,""]
[null,""]
[null,""]
[null,""]
[null,""]
[null,""]
[null,""]
[null,""]
[null,""]
[null,""]
[null,""]
[null,""]
[null,""]
[null,""]
[null,""]
[null,{"$f":"IF(ISBLANK(A78),\"\",MID(A78,1,10))","v":""}]
[null,""]
[null,""]
[null,""]
[null,""]
[null,""]
[null,""]
[null,""]
[null,""]
[null,""]
[null,""]
[null,""]
[null,""]
[null,""]
[null,""]
[null,""]
[null,""]
[null,""]
[null,""]
[null,""]
[null,""]
[null,""]
[null,""]
[null,""]
[null,""]
[null,""]
[null,""]
[null,""]
[null,""]
[null,""]
[null,""]
[null,""]
[null,""]
[null,""]
[null,""]
[null,""]
[null,""]
[null,""]
[null,""]
[null,""]
[null,""]
[null,""]
[null,""]
[null,""]
[null,""]
[null,""]
[null,""]
[null,""]
[null,""]
[null,""]
[null,""]
[null,""]
[null,""]
[null,""]
[null,""]
[null,""]
[null,""]
[null,""]
[null,""]
[null,""]
[null,""]
[null,""]
[null,""]
[null,""]
[null,{"$f":"IF(ISBLANK(A142),\"\",MID(A142,1,10))","v":""}]
[null,""]
[null,""]
[null,""]
[null,""]
[null,""]
[null,""]
[null,""]
[null,""]
[null,""]
[null,""]
[null,""]
[null,""]
[null,""]
[null,""]
[null,""]
[null,""]
[null,""]
[null,""]
[null,""]
[null,""]
[null,""]
[null,""]
[null,""]
[null,""]
[null,""]
[null,""]
[null,""]
[null,""]
[null,""]
[null,""]
[null,""]
[null,""]
[null,""]
[null,""]
[null,""]
[null,""]
[null,""]
[null,""]
[null,""]
[null,""]
[null,""]
[null,""]
[null,""]
[null,""]
[null,""]
[null,""]
[null,""]
[null,""]
[null,""]
[null,""]
[null,""]
[null,""]
[null,""]
[null,""]
[null,""]
[null,""]
[null,""]
[null,""]
[null,""]
[null,""]
[null,""]
[null,""]
[null,""]
[null,{"$f":"IF(ISBLANK(A206),\"\",MID(A206,1,10))","v":""}]
[null,""]
[null,""]
[null,""]
[null,""]
[null,""]
[null,""]
[null,""]
[null,""]
[null,""]
[null,""]
[null,""]
[null,""]
[null,""]
[null,""]
[null,""]
[null,""]
[null,""]
[null,""]
[null,""]
[null,""]
[null,""]
[null,""]
[null,""]
[null,""]
[null,""]
[null,""]
[null,""]
[null,""]
[null,""]
[null,""]
[null,""]
[null,""]
[null,""]
[null,""]
[null,""]
[null,""]
[null,""]
[null,""]
[null,""]
[null,""]
[null,""]
[null,""]
[null,""]
[null,""]
[null,""]
[null,""]
[null,""]
[null,""]
[null,""]
[null,""]
[null,""]
[null,""]
[null,""]
[null,""]
[null,""]
[null,""]
[null,""]
[null,""]
[null,""]
[null,""]
[null,""]
[null,""]
[null,""]
[null,{"$f":"IF(ISBLANK(A270),\"\",MID(A270,1,10))","v":""}]
[null,""]
[null,""]
[null,""]
[null,""]
[null,""]
[null,""]
[null,""]
[null,""]
[null,""]
[null,""]
[null,""]
[null,""]
[null,""]
[null,""]
[null,""]
[null,""]
[null,""]
[null,""]
[null,""]
[null,""]
[null,""]
[null,""]
[null,""]
[null,""]
[null,""]
[null,""]
[null,""]
[null,""]
[null,""]
[null,""]
[null,""]
[null,""]
[null,""]
[null,""]
[null,""]
[null,""]
[null,""]
[null,""]
[null,""]
[null,""]
[null,""]
[null,""]
[null,""]
[null,""]
[null,""]
[null,""]
[null,""]
[null,""]
[null,""]
[null,""]
[null,""]
[null,""]
[null,""]
[null,""]
[null,""]
[null,""]
[null,""]
[null,""]
[null,""]
[null,""]
[null,""]
[null,""]
[null,""]
[null,{"$f":"IF(ISBLANK(A334),\"\",MID(A334,1,10))","v":""}]
[null,""]
[null,""]
[null,""]
[null,""]
[null,""]
[null,""]
[null,""]
[null,""]
[null,""]
[null,""]
[null,""]
[null,""]
[null,""]
[null,""]
[null,""]
[null,""]
[null,""]
[null,""]
[null,""]
[null,""]
[null,""]
[null,""]
[null,""]
[null,""]
[null,""]
[null,""]
[null,""]
[null,""]
[null,""]
[null,""]
[null,""]
[null,""]
[null,""]
[null,""]
[null,""]
[null,""]
[null,""]
[null,""]
[null,""]
[null,""]
[null,""]
[null,""]
[null,""]
[null,""]
[null,""]
[null,""]
[null,""]
[null,""]
[null,""]
[null,""]
[null,""]
[null,""]
[null,""]
[null,""]
[null,""]
[null,""]
[null,""]
[null,""]
[null,""]
[null,""]
[null,""]
[null,""]
[null,""]
[null,{"$f":"IF(ISBLANK(A398),\"\",MID(A398,1,10))","v":""}]
[null,""]
[null,""]
[null,""]
[null,""]
[null,""]
[null,""]
[null,""]
[null,""]
[null,""]
[null,""]
[null,""]
[null,""]
[null,""]
[null,""]
[null,""]
[null,""]
[null,""]
[null,""]
[null,""]
[null,""]
[null,""]
[null,""]
[null,""]
[null,""]
[null,""]
[null,""]
[null,""]
[null,""]
[null,""]
[null,""]
[null,""]
[null,""]
[null,""]
[null,""]
[null,""]
[null,""]
[null,""]
[null,""]
[null,""]
[null,""]
[null,""]
[null,""]
[null,""]
[null,""]
[null,""]
[null,""]
[null,""]
[null,""]
[null,""]
[null,""]
[null,""]
[null,""]
[null,""]
[null,""]
[null,""]
[null,""]
[null,""]
[null,""]
[null,""]
[null,""]
[null,""]
[null,""]
[null,""]
[null,{"$f":"IF(ISBLANK(A462),\"\",MID(A462,1,10))","v":""}]
[null,""]
[null,""]
[null,""]
[null,""]
[null,""]
[null,""]
[null,""]
[null,""]
[null,""]
[null,""]
[null,""]
[null,""]
[null,""]
[null,""]
[null,""]
[null,""]
[null,""]
[null,""]
[null,""]
[null,""]
[null,""]
[null,""]
[null,""]
[null,""]
[null,""]
[null,""]
[null,""]
[null,""]
[null,""]
[null,""]
[null,""]
[null,""]
[null,""]
[null,""]
[null,""]
[null,""]
[null,""]
[null,""]
[null,""]
[null,""]
[null,""]
[null,""]
[null,""]
[null,""]
[null,""]
[null,""]
[null,""]
[null,""]
[null,""]
[null,""]
[null,""]
[null,""]
[null,""]
[null,""]
[null,""]
[null,""]
[null,""]
[null,""]
[null,""]
[null,""]
[null,""]
[null,""]
[null,""]
[null,{"$f":"IF(ISBLANK(A526),\"\",MID(A526,1,10))","v":""}]
[null,""]
[null,""]
[null,""]
[null,""]
[null,""]
[null,""]
[null,""]
[null,""]
[null,""]
[null,""]
[null,""]
[null,""]
[null,""]
[null,""]
[null,""]
[null,""]
[null,""]
[null,""]
[null,""]
[null,""]
[null,""]
[null,""]
[null,""]
[null,""]
[null,""]
[null,""]
[null,""]
[null,""]
[null,""]
[null,""]
[null,""]
[null,""]
[null,""]
[null,""]
[null,""]
[null,""]
[null,""]
[null,""]
[null,""]
[null,""]
[null,""]
[null,""]
[null,""]
[null,""]
[null,""]
[null,""]
[null,""]
[null,""]
[null,""]
[null,""]
[null,""]
[null,""]
[null,""]
[null,""]
[null,""]
[null,""]
[null,""]
[null,""]
[null,""]
[null,""]
[null,""]
[null,""]
[null,""]
[null,{"$f":"IF(ISBLANK(A590),\"\",MID(A590,1,10))","v":""}]
[null,""]
[null,""]
[null,""]
[null,""]
[null,""]
[null,""]
[null,""]
[null,""]
[null,""]
[null,""]
[null,""]
[null,""]
[null,""]
[null,""]
[null,""]
[null,""]
[null,""]
[null,""]
[null,""]
[null,""]
[null,""]
[null,""]
[null,""]
[null,""]
[null,""]
[null,""]
[null,""]
[null,""]
[null,""]
[null,""]
[null,""]
[null,""]
[null,""]
[null,""]
[null,""]
[null,""]
[null,""]
[null,""]
[null,""]
[null,""]
[null,""]
[null,""]
[null,""]
[null,""]
[null,""]
[null,""]
[null,""]
[null,""]
[null,""]
[null,""]
[null,""]
[null,""]
[null,""]
[null,""]
[null,""]
[null,""]
[null,""]
[null,""]
[null,""]
[null,""]
[null,""]
[null,""]
[null,""]
[null,{"$f":"IF(ISBLANK(A654),\"\",MID(A654,1,10))","v":""}]
[null,""]
[null,""]
[null,""]
[null,""]
[null,""]
[null,""]
[null,""]
[null,""]
[null,""]
[null,""]
[null,""]
[null,""]
[null,""]
[null,""]
[null,""]
[null,""]
[null,""]
[null,""]
[null,""]
[null,""]
[null,""]
[null,""]
[null,""]
[null,""]
[null,""]
[null,""]
[null,""]
[null,""]
[null,""]
[null,""]
[null,""]
[null,""]
[null,""]
[null,""]
[null,""]
[null,""]
[null,""]
[null,""]
[null,""]
[null,""]
[null,""]
[null,""]
[null,""]
[null,""]
[null,""]
[null,""]
[null,""]
[null,""]
[null,""]
[null,""]
[null,""]
[null,""]
[null,""]
[null,""]
[null,""]
[null,""]
[null,""]
[null,""]
[null,""]
[null,""]
[null,""]
[null,""]
[null,""]
[null,{"$f":"IF(ISBLANK(A718),\"\",MID(A718,1,10))","v":""}]
[null,""]
[null,""]
[null,""]
[null,""]
[null,""]
[null,""]
[null,""]
[null,""]
[null,""]
[null,""]
[null,""]
[null,""]
[null,""]
[null,""]
[null,""]
[null,""]
[null,""]
[null,""]
[null,""]
[null,""]
[null,""]
[null,""]
[null,""]
[null,""]
[null,""]
[null,""]
[null,""]
[null,""]
[null,""]
[null,""]
[null,""]
[null,""]
[null,""]
[null,""]
[null,""]
[null,""]
[null,""]
[null,""]
[null,""]
[null,""]
[null,""]
[null,""]
[null,""]
[null,""]
[null,""]
[null,""]
[null,""]
[null,""]
[null,""]
[null,""]
[null,""]
[null,""]
[null,""]
[null,""]
[null,""]
[null,""]
[null,""]
[null,""]
[null,""]
[null,""]
[null,""]
[null,""]
[null,""]
[null,{"$f":"IF(ISBLANK(A782),\"\",MID(A782,1,10))","v":""}]
[null,""]
[null,""]
[null,""]
[null,""]
[null,""]
[null,""]
[null,""]
[null,""]
[null,""]
[null,""]
[null,""]
[null,""]
[null,""]
[null,""]
[null,""]
[null,""]
[null,""]
[null,""]
[null,""]
[null,""]
[null,""]
[null,""]
[null,""]
[null,""]
[null,""]
[null,""]
[null,""]
[null,""]
[null,""]
[null,""]
[null,""]
[null,""]
[null,""]
[null,""]
[null,""]
[null,""]
[null,""]
[null,""]
[null,""]
[null,""]
[null,""]
[null,""]
[null,""]
[null,""]
[null,""]
[null,""]
[null,""]
[null,""]
[null,""]
[null,""]
[null,""]
[null,""]
[null,""]
[null,""]
[null,""]
[null,""]
[null,""]
[null,""]
[null,""]
[null,""]
[null,""]
[null,""]
[null,""]
[null,{"$f":"IF(ISBLANK(A846),\"\",MID(A846,1,10))","v":""}]
[null,""]
[null,""]
[null,""]
[null,""]
[null,""]
[null,""]
[null,""]
[null,""]
[null,""]
[null,""]
[null,""]
[null,""]
[null,""]
[null,""]
[null,""]
[null,""]
[null,""]
[null,""]
[null,""]
[null,""]
[null,""]
[null,""]
[null,""]
[null,""]
[null,""]
[null,""]
[null,""]
[null,""]
[null,""]
[null,""]
[null,""]
[null,""]
[null,""]
[null,""]
[null,""]
[null,""]
[null,""]
[null,""]
[null,""]
[null,""]
[null,""]
[null,""]
[null,""]
[null,""]
[null,""]
[null,""]
[null,""]
[null,""]
[null,""]
[null,""]
[null,""]
[null,""]
[null,""]
[null,""]
[null,""]
[null,""]
[null,""]
[null,""]
[null,""]
[null,""]
[null,""]
[null,""]
[null,""]
[null,{"$f":"IF(ISBLANK(A910),\"\",MID(A910,1,10))","v":""}]
[null,""]
[null,""]
[null,""]
[null,""]
[null,""]
[null,""]
[null,""]
[null,""]
[null,""]
[null,""]
[null,""]
[null,""]
[null,""]
[null,""]
[null,""]
[null,""]
[null,""]
[null,""]
[null,""]
[null,""]
[null,""]
[null,""]
[null,""]
[null,""]
[null,""]
[null,""]
[null,""]
[null,""]
[null,""]
[null,""]
[null,""]
[null,""]
[null,""]
[null,""]
[null,""]
[null,""]
[null,""]
[null,""]
[null,""]
[null,""]
[null,""]
[null,""]
[null,""]
[null,""]
[null,""]
[null,""]
[null,""]
[null,""]
[null,""]
[null,""]
[null,""]
[null,""]
[null,""]
[null,""]
[null,""]
[null,""]
[null,""]
[null,""]
[null,""]
[null,""]
[null,""]
[null,""]
[null,""]
[null,{"$f":"IF(ISBLANK(A974),\"\",MID(A974,1,10))","v":""}]
[null,""]
[null,""]
[null,""]
[null,""]
[null,""]
[null,""]
[null,""]
[null,""]
[null,""]
[null,""]
[null,""]
[null,""]
[null,""]
[null,""]
[null,""]
[null,""]
[null,""]
[null,""]
[null,""]
[null,""]
[null,""]
[null,""]
[null,""]
[null,""]
[null,""]
[null,""]
[null,""]
[null,""]
[null,""]
[null,""]
[null,""]
[null,""]
[null,""]
[null,""]
[null,""]
[null,""]
[null,""]
[null,""]
[null,""]
[null,""]
[null,""]
[null,""]
[null,""]
[null,""]
[null,""]
[null,""]
[null,""]
[null,""]
[null,""]
[null,""]
[null,""]
[null,""]
[null,""]
[null,""]
[null,""]
[null,""]
[null,""]
[null,""]
[null,""]
[null,""]
[null,""]
[null,""]
[null,""]
[null,{"$f":"IF(ISBLANK(A1038),\"\",MID(A1038,1,10))","v":""}]
[null,""]
[null,""]
[null,""]
[null,""]
[null,""]
[null,""]
[null,""]
[null,""]
[null,""]
[null,""]
[null,""]
[null,""]
[null,""]
[null,""]
[null,""]
[null,""]
[null,""]
[null,""]
[null,""]
[null,""]
[null,""]
[null,""]
[null,""]
[null,""]
[null,""]
[null,""]
[null,""]
[null,""]
[null,""]
[null,""]
[null,""]
[null,""]
[null,""]
[null,""]
[null,""]
[null,""]
[null,""]
[null,""]
[null,""]
[null,""]
[null,""]
[null,""]
[null,""]
[null,""]
[null,""]
[null,""]
[null,""]
[null,""]
[null,""]
[null,""]
[null,""]
[null,""]
[null,""]
[null,""]
[null,""]
[null,""]
[null,""]
[null,""]
[null,""]
[null,""]
[null,""]
[null,""]
[null,""]
[null,{"$f":"IF(ISBLANK(A1102),\"\",MID(A1102,1,10))","v":""}]
[null,""]
[null,""]
[null,""]
[null,""]
[null,""]
[null,""]
[null,""]
[null,""]
[null,""]
[null,""]
[null,""]
[null,""]
[null,""]
[null,""]
[null,""]
[null,""]
[null,""]
[null,""]
[null,""]
[null,""]
[null,""]
[null,""]
[null,""]
[null,""]
[null,""]
[null,""]
[null,""]
[null,""]
[null,""]
[null,""]
[null,""]
[null,""]
[null,""]
[null,""]
[null,""]
[null,""]
[null,""]
[null,""]
[null,""]
[null,""]
[null,""]
[null,""]
[null,""]
[null,""]
[null,""]
[null,""]
[null,""]
[null,""]
[null,""]
[null,""]
[null,""]
[null,""]
[null,""]
[null,""]
[null,""]
[null,""]
[null,""]
[null,""]
[null,""]
[null,""]
[null,""]
[null,""]
[null,""]
[null,{"$f":"IF(ISBLANK(A1166),\"\",MID(A1166,1,10))","v":""}]
[null,""]
[null,""]
[null,""]
[null,""]
[null,""]
[null,""]
[null,""]
[null,""]
[null,""]
[null,""]
[null,""]
[null,""]
[null,""]
[null,""]
[null,""]
[null,""]
[null,""]
[null,""]
[null,""]
[null,""]
[null,""]
[null,""]
[null,""]
[null,""]
[null,""]
[null,""]
[null,""]
[null,""]
[null,""]
[null,""]
[null,""]
[null,""]
[null,""]
[null,""]
[null,""]
[null,""]
[null,""]
[null,""]
[null,""]
[null,""]
[null,""]
[null,""]
[null,""]
[null,""]
[null,""]
[null,""]
[null,""]
[null,""]
[null,""]
[null,""]
[null,""]
[null,""]
[null,""]
[null,""]
[null,""]
[null,""]
[null,""]
[null,""]
[null,""]
[null,""]
[null,""]
[null,""]
[null,""]
[null,{"$f":"IF(ISBLANK(A1230),\"\",MID(A1230,1,10))","v":""}]
[null,""]
[null,""]
[null,""]
[null,""]
[null,""]
[null,""]
[null,""]
[null,""]
[null,""]
[null,""]
[null,""]
[null,""]
[null,""]
[null,""]
[null,""]
[null,""]
[null,""]
[null,""]
[null,""]
[null,""]
[null,""]
[null,""]
[null,""]
[null,""]
[null,""]
[null,""]
[null,""]
[null,""]
[null,""]
[null,""]
[null,""]
[null,""]
[null,""]
[null,""]
[null,""]
[null,""]
[null,""]
[null,""]
[null,""]
[null,""]
[null,""]
[null,""]
[null,""]
[null,""]
[null,""]
[null,""]
[null,""]
[null,""]
[null,""]
[null,""]
[null,""]
[null,""]
[null,""]
[null,""]
[null,""]
[null,""]
[null,""]
[null,""]
[null,""]
[null,""]
[null,""]
[null,""]
[null,""]
[null,{"$f":"IF(ISBLANK(A1294),\"\",MID(A1294,1,10))","v":""}]
[null,""]
[null,""]
[null,""]
[null,""]
[null,""]
[null,""]
[null,""]
[null,""]
[null,""]
[null,""]
[null,""]
[null,""]
[null,""]
[null,""]
[null,""]
[null,""]
[null,""]
[null,""]
[null,""]
[null,""]
[null,""]
[null,""]
[null,""]
[null,""]
[null,""]
[null,""]
[null,""]
[null,""]
[null,""]
[null,""]
[null,""]
[null,""]
[null,""]
[null,""]
[null,""]
[null,""]
[null,""]
[null,""]
[null,""]
[null,""]
[null,""]
[null,""]
[null,""]
[null,""]
[null,""]
[null,""]
[null,""]
[null,""]
[null,""]
[null,""]
[null,""]
[null,""]
[null,""]
[null,""]
[null,""]
[null,""]
[null,""]
[null,""]
[null,""]
[null,""]
[null,""]
[null,""]
[null,""]
[null,{"$f":"IF(ISBLANK(A1358),\"\",MID(A1358,1,10))","v":""}]
[null,""]
[null,""]
[null,""]
[null,""]
[null,""]
[null,""]
[null,""]
[null,""]
[null,""]
[null,""]
[null,""]
[null,""]
[null,""]
[null,""]
[null,""]
[null,""]
[null,""]
[null,""]
[null,""]
[null,""]
[null,""]
[null,""]
[null,""]
[null,""]
[null,""]
[null,""]
[null,""]
[null,""]
[null,""]
[null,""]
[null,""]
[null,""]
[null,""]
[null,""]
[null,""]
[null,""]
[null,""]
[null,""]
[null,""]
[null,""]
[null,""]
[null,""]
[null,""]
[null,""]
[null,""]
[null,""]
[null,""]
[null,""]
[null,""]
[null,""]
[null,""]
[null,""]
[null,""]
[null,""]
[null,""]
[null,""]
[null,""]
[null,""]
[null,""]
[null,""]
[null,""]
[null,""]
[null,""]
[null,{"$f":"IF(ISBLANK(A1422),\"\",MID(A1422,1,10))","v":""}]
[null,""]
[null,""]
[null,""]
[null,""]
[null,""]
[null,""]
[null,""]
[null,""]
[null,""]
[null,""]
[null,""]
[null,""]
[null,""]
[null,""]
[null,""]
[null,""]
[null,""]
[null,""]
[null,""]
[null,""]
[null,""]
[null,""]
[null,""]
[null,""]
[null,""]
[null,""]
[null,""]
[null,""]
[null,""]
[null,""]
[null,""]
[null,""]
[null,""]
[null,""]
[null,""]
[null,""]
[null,""]
[null,""]
[null,""]
[null,""]
[null,""]
[null,""]
[null,""]
[null,""]
[null,""]
[null,""]
[null,""]
[null,""]
[null,""]
[null,""]
[null,""]
[null,""]
[null,""]
[null,""]
[null,""]
[null,""]
[null,""]
[null,""]
[null,""]
[null,""]
[null,""]
[null,""]
[null,""]
[null,{"$f":"IF(ISBLANK(A1486),\"\",MID(A1486,1,10))","v":""}]
[null,""]
[null,""]
[null,""]
[null,""]
[null,""]
[null,""]
[null,""]
[null,""]
[null,""]
[null,""]
[null,""]
[null,""]
[null,""]
[null,""]
[null,""]
[null,""]
[null,""]
[null,""]
[null,""]
[null,""]
[null,""]
[null,""]
[null,""]
[null,""]
[null,""]
[null,""]
[null,""]
[null,""]
[null,""]
[null,""]
[null,""]
[null,""]
[null,""]
[null,""]
[null,""]
[null,""]
[null,""]
[null,""]
[null,""]
[null,""]
[null,""]
[null,""]
[null,""]
[null,""]
[null,""]
[null,""]
[null,""]
[null,""]
[null,""]
[null,""]
[null,""]
[null,""]
[null,""]
[null,""]
[null,""]
[null,""]
[null,""]
[null,""]
[null,""]
[null,""]
[null,""]
[null,""]
[null,""]
[null,{"$f":"IF(ISBLANK(A1550),\"\",MID(A1550,1,10))","v":""}]
[null,""]
[null,""]
[null,""]
[null,""]
[null,""]
[null,""]
[null,""]
[null,""]
[null,""]
[null,""]
[null,""]
[null,""]
[null,""]
[null,""]
[null,""]
[null,""]
[null,""]
[null,""]
[null,""]
[null,""]
[null,""]
[null,""]
[null,""]
[null,""]
[null,""]
[null,""]
[null,""]
[null,""]
[null,""]
[null,""]
[null,""]
[null,""]
[null,""]
[null,""]
[null,""]
[null,""]
[null,""]
[null,""]
[null,""]
[null,""]
[null,""]
[null,""]
[null,""]
[null,""]
[null,""]
[null,""]
[null,""]
[null,""]
[null,""]
[null,""]
[null,""]
[null,""]
[null,""]
[null,""]
[null,""]
[null,""]
[null,""]
[null,""]
[null,""]
[null,""]
[null,""]
[null,""]
[null,""]
[null,{"$f":"IF(ISBLANK(A1614),\"\",MID(A1614,1,10))","v":""}]
[null,""]
[null,""]
[null,""]
[null,""]
[null,""]
[null,""]
[null,""]
[null,""]
[null,""]
[null,""]
[null,""]
[null,""]
[null,""]
[null,""]
[null,""]
[null,""]
[null,""]
[null,""]
[null,""]
[null,""]
[null,""]
[null,""]
[null,""]
[null,""]
[null,""]
[null,""]
[null,""]
[null,""]
[null,""]
[null,""]
[null,""]
[null,""]
[null,""]
[null,""]
[null,""]
[null,""]
[null,""]
[null,""]
[null,""]
[null,""]
[null,""]
[null,""]
[null,""]
[null,""]
[null,""]
[null,""]
[null,""]
[null,""]
[null,""]
[null,""]
[null,""]
[null,""]
[null,""]
[null,""]
[null,""]
[null,""]
[null,""]
[null,""]
[null,""]
[null,""]
[null,""]
[null,""]
[null,""]
[null,{"$f":"IF(ISBLANK(A1678),\"\",MID(A1678,1,10))","v":""}]
[null,""]
[null,""]
[null,""]
[null,""]
[null,""]
[null,""]
[null,""]
[null,""]
[null,""]
[null,""]
[null,""]
[null,""]
[null,""]
[null,""]
[null,""]
[null,""]
[null,""]
[null,""]
[null,""]
[null,""]
[null,""]
[null,""]
[null,""]
[null,""]
[null,""]
[null,""]
[null,""]
[null,""]
[null,""]
[null,""]
[null,""]
[null,""]
[null,""]
[null,""]
[null,""]
[null,""]
[null,""]
[null,""]
[null,""]
[null,""]
[null,""]
[null,""]
[null,""]
[null,""]
[null,""]
[null,""]
[null,""]
[null,""]
[null,""]
[null,""]
[null,""]
[null,""]
[null,""]
[null,""]
[null,""]
[null,""]
[null,""]
[null,""]
[null,""]
[null,""]
[null,""]
[null,""]
[null,""]
[null,{"$f":"IF(ISBLANK(A1742),\"\",MID(A1742,1,10))","v":""}]
[null,""]
[null,""]
[null,""]
[null,""]
[null,""]
[null,""]
[null,""]
[null,""]
[null,""]
[null,""]
[null,""]
[null,""]
[null,""]
[null,""]
[null,""]
[null,""]
[null,""]
[null,""]
[null,""]
[null,""]
[null,""]
[null,""]
[null,""]
[null,""]
[null,""]
[null,""]
[null,""]
[null,""]
[null,""]
[null,""]
[null,""]
[null,""]
[null,""]
[null,""]
[null,""]
[null,""]
[null,""]
[null,""]
[null,""]
[null,""]
[null,""]
[null,""]
[null,""]
[null,""]
[null,""]
[null,""]
[null,""]
[null,""]
[null,""]
[null,""]
[null,""]
[null,""]
[null,""]
[null,""]
[null,""]
[null,""]
[null,""]
[null,""]
[null,""]
[null,""]
[null,""]
[null,""]
[null,""]
[null,{"$f":"IF(ISBLANK(A1806),\"\",MID(A1806,1,10))","v":""}]
[null,""]
[null,""]
[null,""]
[null,""]
[null,""]
[null,""]
[null,""]
[null,""]
[null,""]
[null,""]
[null,""]
[null,""]
[null,""]
[null,""]
[null,""]
[null,""]
[null,""]
[null,""]
[null,""]
[null,""]
[null,""]
[null,""]
[null,""]
[null,""]
[null,""]
[null,""]
[null,""]
[null,""]
[null,""]
[null,""]
[null,""]
[null,""]
[null,""]
[null,""]
[null,""]
[null,""]
[null,""]
[null,""]
[null,""]
[null,""]
[null,""]
[null,""]
[null,""]
[null,""]
[null,""]
[null,""]
[null,""]
[null,""]
[null,""]
[null,""]
[null,""]
[null,""]
[null,""]
[null,""]
[null,""]
[null,""]
[null,""]
[null,""]
[null,""]
[null,""]
[null,""]
[null,""]
[null,""]
[null,{"$f":"IF(ISBLANK(A1870),\"\",MID(A1870,1,10))","v":""}]
[null,""]
[null,""]
[null,""]
[null,""]
[null,""]
[null,""]
[null,""]
[null,""]
[null,""]
[null,""]
[null,""]
[null,""]
[null,""]
[null,""]
[null,""]
[null,""]
[null,""]
[null,""]
[null,""]
[null,""]
[null,""]
[null,""]
[null,""]
[null,""]
[null,""]
[null,""]
[null,""]
[null,""]
[null,""]
[null,""]
[null,""]
[null,""]
[null,""]
[null,""]
[null,""]
[null,""]
[null,""]
[null,""]
[null,""]
[null,""]
[null,""]
[null,""]
[null,""]
[null,""]
[null,""]
[null,""]
[null,""]
[null,""]
[null,""]
[null,""]
[null,""]
[null,""]
[null,""]
[null,""]
[null,""]
[null,""]
[null,""]
[null,""]
[null,""]
[null,""]
[null,""]
[null,""]
[null,""]
[null,{"$f":"IF(ISBLANK(A1934),\"\",MID(A1934,1,10))","v":""}]
[null,""]
[null,""]
[null,""]
[null,""]
[null,""]
[null,""]
[null,""]
[null,""]
[null,""]
[null,""]
[null,""]
[null,""]
[null,""]
[null,""]
[null,""]
[null,""]
[null,""]
[null,""]
[null,""]
[null,""]
[null,""]
[null,""]
[null,""]
[null,""]
[null,""]
[null,""]
[null,""]
[null,""]
[null,""]
[null,""]
[null,""]
[null,""]
[null,""]
[null,""]
[null,""]
[null,""]
[null,""]
[null,""]
[null,""]
[null,""]
[null,""]
[null,""]
[null,""]
[null,""]
[null,""]
[null,""]
[null,""]
[null,""]
[null,""]
[null,""]
[null,""]
[null,""]
[null,""]
[null,""]
[null,""]
[null,""]
[null,""]
[null,""]
[null,""]
[null,""]
[null,""]
[null,""]
[null,""]
[null,{"$f":"IF(ISBLANK(A1998),\"\",MID(A1998,1,10))","v":""}]
[null,""]
[null,""]
[null,""]
[null,""]
[null,""]
[null,""]
[null,""]
[null,""]
[null,""]
[null,""]
[null,""]
[null,""]
[null,""]
[null,""]
[null,""]
[null,""]
[null,""]
[null,""]
[null,""]
[null,""]
[null,""]
[null,""]
[null,""]
[null,""]
[null,""]
[null,""]
[null,""]
[null,""]
[null,""]
[null,""]
[null,""]
[null,""]
[null,""]
[null,""]
[null,""]
[null,""]
[null,""]
[null,""]
[null,""]
[null,""]
[null,""]
[null,""]
[null,""]
[null,""]
[null,""]
[null,""]
[null,""]
[null,""]
[null,""]
[null,""]
[null,""]
[null,""]
[null,""]
[null,""]
[null,""]
[null,""]
[null,""]
[null,""]
[null,""]
[null,""]
[null,""]
[null,""]
[null,""]
[null,{"$f":"IF(ISBLANK(A2062),\"\",MID(A2062,1,10))","v":""}]
[null,""]
[null,""]
[null,""]
[null,""]
[null,""]
[null,""]
[null,""]
[null,""]
[null,""]
[null,""]
[null,""]
[null,""]
[null,""]
[null,""]
[null,""]
[null,""]
[null,""]
[null,""]
[null,""]
[null,""]
[null,""]
[null,""]
[null,""]
[null,""]
[null,""]
[null,""]
[null,""]
[null,""]
[null,""]
[null,""]
[null,""]
[null,""]
[null,""]
[null,""]
[null,""]
[null,""]
[null,""]
[null,""]
[null,""]
[null,""]
[null,""]
[null,""]
[null,""]
[null,""]
[null,""]
[null,""]
[null,""]
[null,""]
[null,""]
[null,""]
[null,""]
[null,""]
[null,""]
[null,""]
[null,""]
[null,""]
[null,""]
[null,""]
[null,""]
[null,""]
[null,""]
[null,""]
[null,""]
[null,{"$f":"IF(ISBLANK(A2126),\"\",MID(A2126,1,10))","v":""}]
[null,""]
[null,""]
[null,""]
[null,""]
[null,""]
[null,""]
[null,""]
[null,""]
[null,""]
[null,""]
[null,""]
[null,""]
[null,""]
[null,""]
[null,""]
[null,""]
[null,""]
[null,""]
[null,""]
[null,""]
[null,""]
[null,""]
[null,""]
[null,""]
[null,""]
[null,""]
[null,""]
[null,""]
[null,""]
[null,""]
[null,""]
[null,""]
[null,""]
[null,""]
[null,""]
[null,""]
[null,""]
[null,""]
[null,""]
[null,""]
[null,""]
[null,""]
[null,""]
[null,""]
[null,""]
[null,""]
[null,""]
[null,""]
[null,""]
[null,""]
[null,""]
[null,""]
[null,""]
[null,""]
[null,""]
[null,""]
[null,""]
[null,""]
[null,""]
[null,""]
[null,""]
[null,""]
[null,""]
[null,{"$f":"IF(ISBLANK(A2190),\"\",MID(A2190,1,10))","v":""}]
[null,""]
[null,""]
[null,""]
[null,""]
[null,""]
[null,""]
[null,""]
[null,""]
[null,""]
[null,""]
[null,""]
[null,""]
[null,""]
[null,""]
[null,""]
[null,""]
[null,""]
[null,""]
[null,""]
[null,""]
[null,""]
[null,""]
[null,""]
[null,""]
[null,""]
[null,""]
[null,""]
[null,""]
[null,""]
[null,""]
[null,""]
[null,""]
[null,""]
[null,""]
[null,""]
[null,""]
[null,""]
[null,""]
[null,""]
[null,""]
[null,""]
[null,""]
[null,""]
[null,""]
[null,""]
[null,""]
[null,""]
[null,""]
[null,""]
[null,""]
[null,""]
[null,""]
[null,""]
[null,""]
[null,""]
[null,""]
[null,""]
[null,""]
[null,""]
[null,""]
[null,""]
[null,""]
[null,""]
[null,{"$f":"IF(ISBLANK(A2254),\"\",MID(A2254,1,10))","v":""}]
[null,""]
[null,""]
[null,""]
[null,""]
[null,""]
[null,""]
[null,""]
[null,""]
[null,""]
[null,""]
[null,""]
[null,""]
[null,""]
[null,""]
[null,""]
[null,""]
[null,""]
[null,""]
[null,""]
[null,""]
[null,""]
[null,""]
[null,""]
[null,""]
[null,""]
[null,""]
[null,""]
[null,""]
[null,""]
[null,""]
[null,""]
[null,""]
[null,""]
[null,""]
[null,""]
[null,""]
[null,""]
[null,""]
[null,""]
[null,""]
[null,""]
[null,""]
[null,""]
[null,""]
[null,""]
[null,""]
[null,""]
[null,""]
[null,""]
[null,""]
[null,""]
[null,""]
[null,""]
[null,""]
[null,""]
[null,""]
[null,""]
[null,""]
[null,""]
[null,""]
[null,""]
[null,""]
[null,""]
[null,{"$f":"IF(ISBLANK(A2318),\"\",MID(A2318,1,10))","v":""}]
[null,""]
[null,""]
[null,""]
[null,""]
[null,""]
[null,""]
[null,""]
[null,""]
[null,""]
[null,""]
[null,""]
[null,""]
[null,""]
[null,""]
[null,""]
[null,""]
[null,""]
[null,""]
[null,""]
[null,""]
[null,""]
[null,""]
[null,""]
[null,""]
[null,""]
[null,""]
[null,""]
[null,""]
[null,""]
[null,""]
[null,""]
[null,""]
[null,""]
[null,""]
[null,""]
[null,""]
[null,""]
[null,""]
[null,""]
[null,""]
[null,""]
[null,""]
[null,""]
[null,""]
[null,""]
[null,""]
[null,""]
[null,""]
[null,""]
[null,""]
[null,""]
[null,""]
[null,""]
[null,""]
[null,""]
[null,""]
[null,""]
[null,""]
[null,""]
[null,""]
[null,""]
[null,""]
[null,""]
[null,{"$f":"IF(ISBLANK(A2382),\"\",MID(A2382,1,10))","v":""}]
[null,""]
[null,""]
[null,""]
[null,""]
[null,""]
[null,""]
[null,""]
[null,""]
[null,""]
[null,""]
[null,""]
[null,""]
[null,""]
[null,""]
[null,""]
[null,""]
[null,""]
[null,""]
[null,""]
[null,""]
[null,""]
[null,""]
[null,""]
[null,""]
[null,""]
[null,""]
[null,""]
[null,""]
[null,""]
[null,""]
[null,""]
[null,""]
[null,""]
[null,""]
[null,""]
[null,""]
[null,""]
[null,""]
[null,""]
[null,""]
[null,""]
[null,""]
[null,""]
[null,""]
[null,""]
[null,""]
[null,""]
[null,""]
[null,""]
[null,""]
[null,""]
[null,""]
[null,""]
[null,""]
[null,""]
[null,""]
[null,""]
[null,""]
[null,""]
[null,""]
[null,""]
[null,""]
[null,""]
[null,{"$f":"IF(ISBLANK(A2446),\"\",MID(A2446,1,10))","v":""}]
[null,""]
[null,""]
[null,""]
[null,""]
[null,""]
[null,""]
[null,""]
[null,""]
[null,""]
[null,""]
[null,""]
[null,""]
[null,""]
[null,""]
[null,""]
[null,""]
[null,""]
[null,""]
[null,""]
[null,""]
[null,""]
[null,""]
[null,""]
[null,""]
[null,""]
[null,""]
[null,""]
[null,""]
[null,""]
[null,""]
[null,""]
[null,""]
[null,""]
[null,""]
[null,""]
[null,""]
[null,""]
[null,""]
[null,""]
[null,""]
[null,""]
[null,""]
[null,""]
[null,""]
[null,""]
[null,""]
[null,""]
[null,""]
[null,""]
[null,""]
[null,""]
[null,""]
[null,""]
[null,""]
[null,""]
[null,""]
[null,""]
[null,""]
[null,""]
[null,""]
[null,""]
[null,""]
[null,""]
[null,{"$f":"IF(ISBLANK(A2510),\"\",MID(A2510,1,10))","v":""}]
[null,""]
[null,""]
[null,""]
[null,""]
[null,""]
[null,""]
[null,""]
[null,""]
[null,""]
[null,""]
[null,""]
[null,""]
[null,""]
[null,""]
[null,""]
[null,""]
[null,""]
[null,""]
[null,""]
[null,""]
[null,""]
[null,""]
[null,""]
[null,""]
[null,""]
[null,""]
[null,""]
[null,""]
[null,""]
[null,""]
[null,""]
[null,""]
[null,""]
[null,""]
[null,""]
[null,""]
[null,""]
[null,""]
[null,""]
[null,""]
[null,""]
[null,""]
[null,""]
[null,""]
[null,""]
[null,""]
[null,""]
[null,""]
[null,""]
[null,""]
[null,""]
[null,""]
[null,""]
[null,""]
[null,""]
[null,""]
[null,""]
[null,""]
[null,""]
[null,""]
[null,""]
[null,""]
[null,""]
[null,{"$f":"IF(ISBLANK(A2574),\"\",MID(A2574,1,10))","v":""}]
[null,""]
[null,""]
[null,""]
[null,""]
[null,""]
[null,""]
[null,""]
[null,""]
[null,""]
[null,""]
[null,""]
[null,""]
[null,""]
[null,""]
[null,""]
[null,""]
[null,""]
[null,""]
[null,""]
[null,""]
[null,""]
[null,""]
[null,""]
[null,""]
[null,""]
[null,""]
[null,""]
[null,""]
[null,""]
[null,""]
[null,""]
[null,""]
[null,""]
[null,""]
[null,""]
[null,""]
[null,""]
[null,""]
[null,""]
[null,""]
[null,""]
[null,""]
[null,""]
[null,""]
[null,""]
[null,""]
[null,""]
[null,""]
[null,""]
[null,""]
[null,""]
[null,""]
[null,""]
[null,""]
[null,""]
[null,""]
[null,""]
[null,""]
[null,""]
[null,""]
[null,""]
[null,""]
[null,""]
[null,{"$f":"IF(ISBLANK(A2638),\"\",MID(A2638,1,10))","v":""}]
[null,""]
[null,""]
[null,""]
[null,""]
[null,""]
[null,""]
[null,""]
[null,""]
[null,""]
[null,""]
[null,""]
[null,""]
[null,""]
[null,""]
[null,""]
[null,""]
[null,""]
[null,""]
[null,""]
[null,""]
[null,""]
[null,""]
[null,""]
[null,""]
[null,""]
[null,""]
[null,""]
[null,""]
[null,""]
[null,""]
[null,""]
[null,""]
[null,""]
[null,""]
[null,""]
[null,""]
[null,""]
[null,""]
[null,""]
[null,""]
[null,""]
[null,""]
[null,""]
[null,""]
[null,""]
[null,""]
[null,""]
[null,""]
[null,""]
[null,""]
[null,""]
[null,""]
[null,""]
[null,""]
[null,""]
[null,""]
[null,""]
[null,""]
[null,""]
[null,""]
[null,""]
[null,""]
[null,""]
[null,{"$f":"IF(ISBLANK(A2702),\"\",MID(A2702,1,10))","v":""}]
[null,""]
[null,""]
[null,""]
[null,""]
[null,""]
[null,""]
[null,""]
[null,""]
[null,""]
[null,""]
[null,""]
[null,""]
[null,""]
[null,""]
[null,""]
[null,""]
[null,""]
[null,""]
[null,""]
[null,""]
[null,""]
[null,""]
[null,""]
[null,""]
[null,""]
[null,""]
[null,""]
[null,""]
[null,""]
[null,""]
[null,""]
[null,""]
[null,""]
[null,""]
[null,""]
[null,""]
[null,""]
[null,""]
[null,""]
[null,""]
[null,""]
[null,""]
[null,""]
[null,""]
[null,""]
[null,""]
[null,""]
[null,""]
[null,""]
[null,""]
[null,""]
[null,""]
[null,""]
[null,""]
[null,""]
[null,""]
[null,""]
[null,""]
[null,""]
[null,""]
[null,""]
[null,""]
[null,""]
[null,{"$f":"IF(ISBLANK(A2766),\"\",MID(A2766,1,10))","v":""}]
[null,""]
[null,""]
[null,""]
[null,""]
[null,""]
[null,""]
[null,""]
[null,""]
[null,""]
[null,""]
[null,""]
[null,""]
[null,""]
[null,""]
[null,""]
[null,""]
[null,""]
[null,""]
[null,""]
[null,""]
[null,""]
[null,""]
[null,""]
[null,""]
[null,""]
[null,""]
[null,""]
[null,""]
[null,""]
[null,""]
[null,""]
[null,""]
[null,""]
[null,""]
[null,""]
[null,""]
[null,""]
[null,""]
[null,""]
[null,""]
[null,""]
[null,""]
[null,""]
[null,""]
[null,""]
[null,""]
[null,""]
[null,""]
[null,""]
[null,""]
[null,""]
[null,""]
[null,""]
[null,""]
[null,""]
[null,""]
[null,""]
[null,""]
[null,""]
[null,""]
[null,""]
[null,""]
[null,""]
[null,{"$f":"IF(ISBLANK(A2830),\"\",MID(A2830,1,10))","v":""}]
[null,""]
[null,""]
[null,""]
[null,""]
[null,""]
[null,""]
[null,""]
[null,""]
[null,""]
[null,""]
[null,""]
[null,""]
[null,""]
[null,""]
[null,""]
[null,""]
[null,""]
[null,""]
[null,""]
[null,""]
[null,""]
[null,""]
[null,""]
[null,""]
[null,""]
[null,""]
[null,""]
[null,""]
[null,""]
[null,""]
[null,""]
[null,""]
[null,""]
[null,""]
[null,""]
[null,""]
[null,""]
[null,""]
[null,""]
[null,""]
[null,""]
[null,""]
[null,""]
[null,""]
[null,""]
[null,""]
[null,""]
[null,""]
[null,""]
[null,""]
[null,""]
[null,""]
[null,""]
[null,""]
[null,""]
[null,""]
[null,""]
[null,""]
[null,""]
[null,""]
[null,""]
[null,""]
[null,""]
[null,{"$f":"IF(ISBLANK(A2894),\"\",MID(A2894,1,10))","v":""}]
[null,""]
[null,""]
[null,""]
[null,""]
[null,""]
[null,""]
[null,""]
[null,""]
[null,""]
[null,""]
[null,""]
[null,""]
[null,""]
[null,""]
[null,""]
[null,""]
[null,""]
[null,""]
[null,""]
[null,""]
[null,""]
[null,""]
[null,""]
[null,""]
[null,""]
[null,""]
[null,""]
[null,""]
[null,""]
[null,""]
[null,""]
[null,""]
[null,""]
[null,""]
[null,""]
[null,""]
[null,""]
[null,""]
[null,""]
[null,""]
[null,""]
[null,""]
[null,""]
[null,""]
[null,""]
[null,""]
[null,""]
[null,""]
[null,""]
[null,""]
[null,""]
[null,""]
[null,""]
[null,""]
[null,""]
[null,""]
[null,""]
[null,""]
[null,""]
[null,""]
[null,""]
[null,""]
[null,""]
[null,{"$f":"IF(ISBLANK(A2958),\"\",MID(A2958,1,10))","v":""}]
[null,""]
[null,""]
[null,""]
[null,""]
[null,""]
[null,""]
[null,""]
[null,""]
[null,""]
[null,""]
[null,""]
[null,""]
[null,""]
[null,""]
[null,""]
[null,""]
[null,""]
[null,""]
[null,""]
[null,""]
[null,""]
[null,""]
[null,""]
[null,""]
[null,""]
[null,""]
[null,""]
[null,""]
[null,""]
[null,""]
[null,""]
[null,""]
[null,""]
[null,""]
[null,""]
[null,""]
[null,""]
[null,""]
[null,""]
[null,""]
[null,""]
[null,""]
[null,""]
[null,""]
[null,""]
[null,""]
[null,""]
[null,""]
[null,""]
[null,""]
[null,""]
[null,""]
[null,""]
[null,""]
[null,""]
[null,""]
[null,""]
[null,""]
[null,""]
[null,""]
[null,""]
[null,""]
[null,""]
[null,{"$f":"IF(ISBLANK(A3022),\"\",MID(A3022,1,10))","v":""}]
[null,""]
[null,""]
[null,""]
[null,""]
[null,""]
[null,""]
[null,""]
[null,""]
[null,""]
[null,""]
[null,""]
[null,""]
[null,""]
[null,""]
[null,""]
[null,""]
[null,""]
[null,""]
[null,""]
[null,""]
[null,""]
[null,""]
[null,""]
[null,""]
[null,""]
[null,""]
[null,""]
[null,""]
[null,""]
[null,""]
[null,""]
[null,""]
[null,""]
[null,""]
[null,""]
[null,""]
[null,""]
[null,""]
[null,""]
[null,""]
[null,""]
[null,""]
[null,""]
[null,""]
[null,""]
[null,""]
[null,""]
[null,""]
[null,""]
[null,""]
[null,""]
[null,""]
[null,""]
[null,""]
[null,""]
[null,""]
[null,""]
[null,""]
[null,""]
[null,""]
[null,""]
[null,""]
[null,""]
[null,{"$f":"IF(ISBLANK(A3086),\"\",MID(A3086,1,10))","v":""}]
[null,""]
[null,""]
[null,""]
[null,""]
[null,""]
[null,""]
[null,""]
[null,""]
[null,""]
[null,""]
[null,""]
[null,""]
[null,""]
[null,""]
[null,""]
[null,""]
[null,""]
[null,""]
[null,""]
[null,""]
[null,""]
[null,""]
[null,""]
[null,""]
[null,""]
[null,""]
[null,""]
[null,""]
[null,""]
[null,""]
[null,""]
[null,""]
[null,""]
[null,""]
[null,""]
[null,""]
[null,""]
[null,""]
[null,""]
[null,""]
[null,""]
[null,""]
[null,""]
[null,""]
[null,""]
[null,""]
[null,""]
[null,""]
[null,""]
[null,""]
[null,""]
[null,""]
[null,""]
[null,""]
[null,""]
[null,""]
[null,""]
[null,""]
[null,""]
[null,""]
[null,""]
[null,""]
[null,""]
[null,{"$f":"IF(ISBLANK(A3150),\"\",MID(A3150,1,10))","v":""}]
[null,""]
[null,""]
[null,""]
[null,""]
[null,""]
[null,""]
[null,""]
[null,""]
[null,""]
[null,""]
[null,""]
[null,""]
[null,""]
[null,""]
[null,""]
[null,""]
[null,""]
[null,""]
[null,""]
[null,""]
[null,""]
[null,""]
[null,""]
[null,""]
[null,""]
[null,""]
[null,""]
[null,""]
[null,""]
[null,""]
[null,""]
[null,""]
[null,""]
[null,""]
[null,""]
[null,""]
[null,""]
[null,""]
[null,""]
[null,""]
[null,""]
[null,""]
[null,""]
[null,""]
[null,""]
[null,""]
[null,""]
[null,""]
[null,""]
[null,""]
[null,""]
[null,""]
[null,""]
[null,""]
[null,""]
[null,""]
[null,""]
[null,""]
[null,""]
[null,""]
[null,""]
[null,""]
[null,""]
[null,{"$f":"IF(ISBLANK(A3214),\"\",MID(A3214,1,10))","v":""}]
[null,""]
[null,""]
[null,""]
[null,""]
[null,""]
[null,""]
[null,""]
[null,""]
[null,""]
[null,""]
[null,""]
[null,""]
[null,""]
[null,""]
[null,""]
[null,""]
[null,""]
[null,""]
[null,""]
[null,""]
[null,""]
[null,""]
[null,""]
[null,""]
[null,""]
[null,""]
[null,""]
[null,""]
[null,""]
[null,""]
[null,""]
[null,""]
[null,""]
[null,""]
[null,""]
[null,""]
[null,""]
[null,""]
[null,""]
[null,""]
[null,""]
[null,""]
[null,""]
[null,""]
[null,""]
[null,""]
[null,""]
[null,""]
[null,""]
[null,""]
[null,""]
[null,""]
[null,""]
[null,""]
[null,""]
[null,""]
[null,""]
[null,""]
[null,""]
[null,""]
[null,""]
[null,""]
[null,""]
[null,{"$f":"IF(ISBLANK(A3278),\"\",MID(A3278,1,10))","v":""}]
[null,""]
[null,""]
[null,""]
[null,""]
[null,""]
[null,""]
[null,""]
[null,""]
[null,""]
[null,""]
[null,""]
[null,""]
[null,""]
[null,""]
[null,""]
[null,""]
[null,""]
[null,""]
[null,""]
[null,""]
[null,""]
[null,""]
[null,""]
[null,""]
[null,""]
[null,""]
[null,""]
[null,""]
[null,""]
[null,""]
[null,""]
[null,""]
[null,""]
[null,""]
[null,""]
[null,""]
[null,""]
[null,""]
[null,""]
[null,""]
[null,""]
[null,""]
[null,""]
[null,""]
[null,""]
[null,""]
[null,""]
[null,""]
[null,""]
[null,""]
[null,""]
[null,""]
[null,""]
[null,""]
[null,""]
[null,""]
[null,""]
[null,""]
[null,""]
[null,""]
[null,""]
[null,""]
[null,""]
[null,{"$f":"IF(ISBLANK(A3342),\"\",MID(A3342,1,10))","v":""}]
[null,""]
[null,""]
[null,""]
[null,""]
[null,""]
[null,""]
[null,""]
[null,""]
[null,""]
[null,""]
[null,""]
[null,""]
[null,""]
[null,""]
[null,""]
[null,""]
[null,""]
[null,""]
[null,""]
[null,""]
[null,""]
[null,""]
[null,""]
[null,""]
[null,""]
[null,""]
[null,""]
[null,""]
[null,""]
[null,""]
[null,""]
[null,""]
[null,""]
[null,""]
[null,""]
[null,""]
[null,""]
[null,""]
[null,""]
[null,""]
[null,""]
[null,""]
[null,""]
[null,""]
[null,""]
[null,""]
[null,""]
[null,""]
[null,""]
[null,""]
[null,""]
[null,""]
[null,""]
[null,""]
[null,""]
[null,""]
[null,""]
[null,""]
[null,""]
[null,""]
[null,""]
[null,""]
[null,""]
[null,{"$f":"IF(ISBLANK(A3406),\"\",MID(A3406,1,10))","v":""}]
[null,""]
[null,""]
[null,""]
[null,""]
[null,""]
[null,""]
[null,""]
[null,""]
[null,""]
[null,""]
[null,""]
[null,""]
[null,""]
[null,""]
[null,""]
[null,""]
[null,""]
[null,""]
[null,""]
[null,""]
[null,""]
[null,""]
[null,""]
[null,""]
[null,""]
[null,""]
[null,""]
[null,""]
[null,""]
[null,""]
[null,""]
[null,""]
[null,""]
[null,""]
[null,""]
[null,""]
[null,""]
[null,""]
[null,""]
[null,""]
[null,""]
[null,""]
[null,""]
[null,""]
[null,""]
[null,""]
[null,""]
[null,""]
[null,""]
[null,""]
[null,""]
[null,""]
[null,""]
[null,""]
[null,""]
[null,""]
[null,""]
[null,""]
[null,""]
[null,""]
[null,""]
[null,""]
[null,""]
[null,{"$f":"IF(ISBLANK(A3470),\"\",MID(A3470,1,10))","v":""}]
[null,""]
[null,""]
[null,""]
[null,""]
[null,""]
[null,""]
[null,""]
[null,""]
[null,""]
[null,""]
[null,""]
[null,""]
[null,""]
[null,""]
[null,""]
[null,""]
[null,""]
[null,""]
[null,""]
[null,""]
[null,""]
[null,""]
[null,""]
[null,""]
[null,""]
[null,""]
[null,""]
[null,""]
[null,""]
[null,""]
[null,""]
[null,""]
[null,""]
[null,""]
[null,""]
[null,""]
[null,""]
[null,""]
[null,""]
[null,""]
[null,""]
[null,""]
[null,""]
[null,""]
[null,""]
[null,""]
[null,""]
[null,""]
[null,""]
[null,""]
[null,""]
[null,""]
[null,""]
[null,""]
[null,""]
[null,""]
[null,""]
[null,""]
[null,""]
[null,""]
[null,""]
[null,""]
[null,""]
[null,{"$f":"IF(ISBLANK(A3534),\"\",MID(A3534,1,10))","v":""}]
[null,""]
[null,""]
[null,""]
[null,""]
[null,""]
[null,""]
[null,""]
[null,""]
[null,""]
[null,""]
[null,""]
[null,""]
[null,""]
[null,""]
[null,""]
[null,""]
[null,""]
[null,""]
[null,""]
[null,""]
[null,""]
[null,""]
[null,""]
[null,""]
[null,""]
[null,""]
[null,""]
[null,""]
[null,""]
[null,""]
[null,""]
[null,""]
[null,""]
[null,""]
[null,""]
[null,""]
[null,""]
[null,""]
[null,""]
[null,""]
[null,""]
[null,""]
[null,""]
[null,""]
[null,""]
[null,""]
[null,""]
[null,""]
[null,""]
[null,""]
[null,""]
[null,""]
[null,""]
[null,""]
[null,""]
[null,""]
[null,""]
[null,""]
[null,""]
[null,""]
[null,""]
[null,""]
[null,""]
[null,{"$f":"IF(ISBLANK(A3598),\"\",MID(A3598,1,10))","v":""}]
[null,""]
[null,""]
[null,""]
[null,""]
[null,""]
[null,""]
[null,""]
[null,""]
[null,""]
[null,""]
[null,""]
[null,""]
[null,""]
[null,""]
[null,""]
[null,""]
[null,""]
[null,""]
[null,""]
[null,""]
[null,""]
[null,""]
[null,""]
[null,""]
[null,""]
[null,""]
[null,""]
[null,""]
[null,""]
[null,""]
[null,""]
[null,""]
[null,""]
[null,""]
[null,""]
[null,""]
[null,""]
[null,""]
[null,""]
[null,""]
[null,""]
[null,""]
[null,""]
[null,""]
[null,""]
[null,""]
[null,""]
[null,""]
[null,""]
[null,""]
[null,""]
[null,""]
[null,""]
[null,""]
[null,""]
[null,""]
[null,""]
[null,""]
[null,""]
[null,""]
[null,""]
[null,""]
[null,""]
[null,{"$f":"IF(ISBLANK(A3662),\"\",MID(A3662,1,10))","v":""}]
[null,""]
[null,""]
[null,""]
[null,""]
[null,""]
[null,""]
[null,""]
[null,""]
[null,""]
[null,""]
[null,""]
[null,""]
[null,""]
[null,""]
[null,""]
[null,""]
[null,""]
[null,""]
[null,""]
[null,""]
[null,""]
[null,""]
[null,""]
[null,""]
[null,""]
[null,""]
[null,""]
[null,""]
[null,""]
[null,""]
[null,""]
[null,""]
[null,""]
[null,""]
[null,""]
[null,""]
[null,""]
[null,""]
[null,""]
[null,""]
[null,""]
[null,""]
[null,""]
[null,""]
[null,""]
[null,""]
[null,""]
[null,""]
[null,""]
[null,""]
[null,""]
[null,""]
[null,""]
[null,""]
[null,""]
[null,""]
[null,""]
[null,""]
[null,""]
[null,""]
[null,""]
[null,""]
[null,""]
[null,{"$f":"IF(ISBLANK(A3726),\"\",MID(A3726,1,10))","v":""}]
[null,""]
[null,""]
[null,""]
[null,""]
[null,""]
[null,""]
[null,""]
[null,""]
[null,""]
[null,""]
[null,""]
[null,""]
[null,""]
[null,""]
[null,""]
[null,""]
[null,""]
[null,""]
[null,""]
[null,""]
[null,""]
[null,""]
[null,""]
[null,""]
[null,""]
[null,""]
[null,""]
[null,""]
[null,""]
[null,""]
[null,""]
[null,""]
[null,""]
[null,""]
[null,""]
[null,""]
[null,""]
[null,""]
[null,""]
[null,""]
[null,""]
[null,""]
[null,""]
[null,""]
[null,""]
[null,""]
[null,""]
[null,""]
[null,""]
[null,""]
[null,""]
[null,""]
[null,""]
[null,""]
[null,""]
[null,""]
[null,""]
[null,""]
[null,""]
[null,""]
[null,""]
[null,""]
[null,""]
[null,{"$f":"IF(ISBLANK(A3790),\"\",MID(A3790,1,10))","v":""}]
[null,""]
[null,""]
[null,""]
[null,""]
[null,""]
[null,""]
[null,""]
[null,""]
[null,""]
[null,""]
[null,""]
[null,""]
[null,""]
[null,""]
[null,""]
[null,""]
[null,""]
[null,""]
[null,""]
[null,""]
[null,""]
[null,""]
[null,""]
[null,""]
[null,""]
[null,""]
[null,""]
[null,""]
[null,""]
[null,""]
[null,""]
[null,""]
[null,""]
[null,""]
[null,""]
[null,""]
[null,""]
[null,""]
[null,""]
[null,""]
[null,""]
[null,""]
[null,""]
[null,""]
[null,""]
[null,""]
[null,""]
[null,""]
[null,""]
[null,""]
[null,""]
[null,""]
[null,""]
[null,""]
[null,""]
[null,""]
[null,""]
[null,""]
[null,""]
[null,""]
[null,""]
[null,""]
[null,""]
[null,{"$f":"IF(ISBLANK(A3854),\"\",MID(A3854,1,10))","v":""}]
[null,""]
[null,""]
[null,""]
[null,""]
[null,""]
[null,""]
[null,""]
[null,""]
[null,""]
[null,""]
[null,""]
[null,""]
[null,""]
[null,""]
[null,""]
[null,""]
[null,""]
[null,""]
[null,""]
[null,""]
[null,""]
[null,""]
[null,""]
[null,""]
[null,""]
[null,""]
[null,""]
[null,""]
[null,""]
[null,""]
[null,""]
[null,""]
[null,""]
[null,""]
[null,""]
[null,""]
[null,""]
[null,""]
[null,""]
[null,""]
[null,""]
[null,""]
[null,""]
[null,""]
[null,""]
[null,""]
[null,""]
[null,""]
[null,""]
[null,""]
[null,""]
[null,""]
[null,""]
[null,""]
[null,""]
[null,""]
[null,""]
[null,""]
[null,""]
[null,""]
[null,""]
[null,""]
[null,""]
[null,{"$f":"IF(ISBLANK(A3918),\"\",MID(A3918,1,10))","v":""}]
[null,""]
[null,""]
[null,""]
[null,""]
[null,""]
[null,""]
[null,""]
[null,""]
[null,""]
[null,""]
[null,""]
[null,""]
[null,""]
[null,""]
[null,""]
[null,""]
[null,""]
[null,""]
[null,""]
[null,""]
[null,""]
[null,""]
[null,""]
[null,""]
[null,""]
[null,""]
[null,""]
[null,""]
[null,""]
[null,""]
[null,""]
[null,""]
[null,""]
[null,""]
[null,""]
[null,""]
[null,""]
[null,""]
[null,""]
[null,""]
[null,""]
[null,""]
[null,""]
[null,""]
[null,""]
[null,""]
[null,""]
[null,""]
[null,""]
[null,""]
[null,""]
[null,""]
[null,""]
[null,""]
[null,""]
[null,""]
[null,""]
[null,""]
[null,""]
[null,""]
[null,""]
[null,""]
[null,""]
[null,{"$f":"IF(ISBLANK(A3982),\"\",MID(A3982,1,10))","v":""}]
[null,""]
[null,""]
[null,""]
[null,""]
[null,""]
[null,""]
[null,""]
[null,""]
[null,""]
[null,""]
[null,""]
[null,""]
[null,""]
[null,""]
[null,""]
[null,""]
[null,""]
[null,""]
[null,""]
[null,""]
[null,""]
[null,""]
[null,""]
[null,""]
[null,""]
[null,""]
[null,""]
[null,""]
[null,""]
[null,""]
[null,""]
[null,""]
[null,""]
[null,""]
[null,""]
[null,""]
[null,""]
[null,""]
[null,""]
[null,""]
[null,""]
[null,""]
[null,""]
[null,""]
[null,""]
[null,""]
[null,""]
[null,""]
[null,""]
[null,""]
[null,""]
[null,""]
[null,""]
[null,""]
[null,""]
[null,""]
[null,""]
[null,""]
[null,""]
[null,""]
[null,""]
[null,""]
[null,""]
[null,{"$f":"IF(ISBLANK(A4046),\"\",MID(A4046,1,10))","v":""}]
[null,""]
[null,""]
[null,""]
[null,""]
[null,""]
[null,""]
[null,""]
[null,""]
[null,""]
[null,""]
[null,""]
[null,""]
[null,""]
[null,""]
[null,""]
[null,""]
[null,""]
[null,""]
[null,""]
[null,""]
[null,""]
[null,""]
[null,""]
[null,""]
[null,""]
[null,""]
[null,""]
[null,""]
[null,""]
[null,""]
[null,""]
[null,""]
[null,""]
[null,""]
[null,""]
[null,""]
[null,""]
[null,""]
[null,""]
[null,""]
[null,""]
[null,""]
[null,""]
[null,""]
[null,""]
[null,""]
[null,""]
[null,""]
[null,""]
[null,""]
[null,""]
[null,""]
[null,""]
[null,""]
[null,""]
[null,""]
[null,""]
[null,""]
[null,""]
[null,""]
[null,""]
[null,""]
[null,""]
[null,{"$f":"IF(ISBLANK(A4110),\"\",MID(A4110,1,10))","v":""}]
[null,""]
[null,""]
[null,""]
[null,""]
[null,""]
[null,""]
[null,""]
[null,""]
[null,""]
[null,""]
[null,""]
[null,""]
[null,""]
[null,""]
[null,""]
[null,""]
[null,""]
[null,""]
[null,""]
[null,""]
[null,""]
[null,""]
[null,""]
[null,""]
[null,""]
[null,""]
[null,""]
[null,""]
[null,""]
[null,""]
[null,""]
[null,""]
[null,""]
[null,""]
[null,""]
[null,""]
[null,""]
[null,""]
[null,""]
[null,""]
[null,""]
[null,""]
[null,""]
[null,""]
[null,""]
[null,""]
[null,""]
[null,""]
[null,""]
[null,""]
[null,""]
[null,""]
[null,""]
[null,""]
[null,""]
[null,""]
[null,""]
[null,""]
[null,""]
[null,""]
[null,""]
[null,""]
[null,""]
[null,{"$f":"IF(ISBLANK(A4174),\"\",MID(A4174,1,10))","v":""}]
[null,""]
[null,""]
[null,""]
[null,""]
[null,""]
[null,""]
[null,""]
[null,""]
[null,""]
[null,""]
[null,""]
[null,""]
[null,""]
[null,""]
[null,""]
[null,""]
[null,""]
[null,""]
[null,""]
[null,""]
[null,""]
[null,""]
[null,""]
[null,""]
[null,""]
[null,""]
[null,""]
[null,""]
[null,""]
[null,""]
[null,""]
[null,""]
[null,""]
[null,""]
[null,""]
[null,""]
[null,""]
[null,""]
[null,""]
[null,""]
[null,""]
[null,""]
[null,""]
[null,""]
[null,""]
[null,""]
[null,""]
[null,""]
[null,""]
[null,""]
[null,""]
[null,""]
[null,""]
[null,""]
[null,""]
[null,""]
[null,""]
[null,""]
[null,""]
[null,""]
[null,""]
[null,""]
[null,""]
[null,{"$f":"IF(ISBLANK(A4238),\"\",MID(A4238,1,10))","v":""}]
[null,""]
[null,""]
[null,""]
[null,""]
[null,""]
[null,""]
[null,""]
[null,""]
[null,""]
[null,""]
[null,""]
[null,""]
[null,""]
[null,""]
[null,""]
[null,""]
[null,""]
[null,""]
[null,""]
[null,""]
[null,""]
[null,""]
[null,""]
[null,""]
[null,""]
[null,""]
[null,""]
[null,""]
[null,""]
[null,""]
[null,""]
[null,""]
[null,""]
[null,""]
[null,""]
[null,""]
[null,""]
[null,""]
[null,""]
[null,""]
[null,""]
[null,""]
[null,""]
[null,""]
[null,""]
[null,""]
[null,""]
[null,""]
[null,""]
[null,""]
[null,""]
[null,""]
[null,""]
[null,""]
[null,""]
[null,""]
[null,""]
[null,""]
[null,""]
[null,""]
[null,""]
[null,""]
[null,""]
[null,{"$f":"IF(ISBLANK(A4302),\"\",MID(A4302,1,10))","v":""}]
[null,""]
[null,""]
[null,""]
[null,""]
[null,""]
[null,""]
[null,""]
[null,""]
[null,""]
[null,""]
[null,""]
[null,""]
[null,""]
[null,""]
[null,""]
[null,""]
[null,""]
[null,""]
[null,""]
[null,""]
[null,""]
[null,""]
[null,""]
[null,""]
[null,""]
[null,""]
[null,""]
[null,""]
[null,""]
[null,""]
[null,""]
[null,""]
[null,""]
[null,""]
[null,""]
[null,""]
[null,""]
[null,""]
[null,""]
[null,""]
[null,""]
[null,""]
[null,""]
[null,""]
[null,""]
[null,""]
[null,""]
[null,""]
[null,""]
[null,""]
[null,""]
[null,""]
[null,""]
[null,""]
[null,""]
[null,""]
[null,""]
[null,""]
[null,""]
[null,""]
[null,""]
[null,""]
[null,""]
[null,{"$f":"IF(ISBLANK(A4366),\"\",MID(A4366,1,10))","v":""}]
[null,""]
[null,""]
[null,""]
[null,""]
[null,""]
[null,""]
[null,""]
[null,""]
[null,""]
[null,""]
[null,""]
[null,""]
[null,""]
[null,""]
[null,""]
[null,""]
[null,""]
[null,""]
[null,""]
[null,""]
[null,""]
[null,""]
[null,""]
[null,""]
[null,""]
[null,""]
[null,""]
[null,""]
[null,""]
[null,""]
[null,""]
[null,""]
[null,""]
[null,""]
[null,""]
[null,""]
[null,""]
[null,""]
[null,""]
[null,""]
[null,""]
[null,""]
[null,""]
[null,""]
[null,""]
[null,""]
[null,""]
[null,""]
[null,""]
[null,""]
[null,""]
[null,""]
[null,""]
[null,""]
[null,""]
[null,""]
[null,""]
[null,""]
[null,""]
[null,""]
[null,""]
[null,""]
[null,""]
[null,{"$f":"IF(ISBLANK(A4430),\"\",MID(A4430,1,10))","v":""}]
[null,""]
[null,""]
[null,""]
[null,""]
[null,""]
[null,""]
[null,""]
[null,""]
[null,""]
[null,""]
[null,""]
[null,""]
[null,""]
[null,""]
[null,""]
[null,""]
[null,""]
[null,""]
[null,""]
[null,""]
[null,""]
[null,""]
[null,""]
[null,""]
[null,""]
[null,""]
[null,""]
[null,""]
[null,""]
[null,""]
[null,""]
[null,""]
[null,""]
[null,""]
[null,""]
[null,""]
[null,""]
[null,""]
[null,""]
[null,""]
[null,""]
[null,""]
[null,""]
[null,""]
[null,""]
[null,""]
[null,""]
[null,""]
[null,""]
[null,""]
[null,""]
[null,""]
[null,""]
[null,""]
[null,""]
[null,""]
[null,""]
[null,""]
[null,""]
[null,""]
[null,""]
[null,""]
[null,""]
[null,{"$f":"IF(ISBLANK(A4494),\"\",MID(A4494,1,10))","v":""}]
[null,""]
[null,""]
[null,""]
[null,""]
[null,""]
[null,""]
[null,""]
[null,""]
[null,""]
[null,""]
[null,""]
[null,""]
[null,""]
[null,""]
[null,""]
[null,""]
[null,""]
[null,""]
[null,""]
[null,""]
[null,""]
[null,""]
[null,""]
[null,""]
[null,""]
[null,""]
[null,""]
[null,""]
[null,""]
[null,""]
[null,""]
[null,""]
[null,""]
[null,""]
[null,""]
[null,""]
[null,""]
[null,""]
[null,""]
[null,""]
[null,""]
[null,""]
[null,""]
[null,""]
[null,""]
[null,""]
[null,""]
[null,""]
[null,""]
[null,""]
[null,""]
[null,""]
[null,""]
[null,""]
[null,""]
[null,""]
[null,""]
[null,""]
[null,""]
[null,""]
[null,""]
[null,""]
[null,""]
[null,{"$f":"IF(ISBLANK(A4558),\"\",MID(A4558,1,10))","v":""}]
[null,""]
[null,""]
[null,""]
[null,""]
[null,""]
[null,""]
[null,""]
[null,""]
[null,""]
[null,""]
[null,""]
[null,""]
[null,""]
[null,""]
[null,""]
[null,""]
[null,""]
[null,""]
[null,""]
[null,""]
[null,""]
[null,""]
[null,""]
[null,""]
[null,""]
[null,""]
[null,""]
[null,""]
[null,""]
[null,""]
[null,""]
[null,""]
[null,""]
[null,""]
[null,""]
[null,""]
[null,""]
[null,""]
[null,""]
[null,""]
[null,""]
[null,""]
[null,""]
[null,""]
[null,""]
[null,""]
[null,""]
[null,""]
[null,""]
[null,""]
[null,""]
[null,""]
[null,""]
[null,""]
[null,""]
[null,""]
[null,""]
[null,""]
[null,""]
[null,""]
[null,""]
[null,""]
[null,""]
[null,{"$f":"IF(ISBLANK(A4622),\"\",MID(A4622,1,10))","v":""}]
[null,""]
[null,""]
[null,""]
[null,""]
[null,""]
[null,""]
[null,""]
[null,""]
[null,""]
[null,""]
[null,""]
[null,""]
[null,""]
[null,""]
[null,""]
[null,""]
[null,""]
[null,""]
[null,""]
[null,""]
[null,""]
[null,""]
[null,""]
[null,""]
[null,""]
[null,""]
[null,""]
[null,""]
[null,""]
[null,""]
[null,""]
[null,""]
[null,""]
[null,""]
[null,""]
[null,""]
[null,""]
[null,""]
[null,""]
[null,""]
[null,""]
[null,""]
[null,""]
[null,""]
[null,""]
[null,""]
[null,""]
[null,""]
[null,""]
[null,""]
[null,""]
[null,""]
[null,""]
[null,""]
[null,""]
[null,""]
[null,""]
[null,""]
[null,""]
[null,""]
[null,""]
[null,""]
[null,""]
[null,{"$f":"IF(ISBLANK(A4686),\"\",MID(A4686,1,10))","v":""}]
[null,""]
[null,""]
[null,""]
[null,""]
[null,""]
[null,""]
[null,""]
[null,""]
[null,""]
[null,""]
[null,""]
[null,""]
[null,""]
[null,""]
[null,""]
[null,""]
[null,""]
[null,""]
[null,""]
[null,""]
[null,""]
[null,""]
[null,""]
[null,""]
[null,""]
[null,""]
[null,""]
[null,""]
[null,""]
[null,""]
[null,""]
[null,""]
[null,""]
[null,""]
[null,""]
[null,""]
[null,""]
[null,""]
[null,""]
[null,""]
[null,""]
[null,""]
[null,""]
[null,""]
[null,""]
[null,""]
[null,""]
[null,""]
[null,""]
[null,""]
[null,""]
[null,""]
[null,""]
[null,""]
[null,""]
[null,""]
[null,""]
[null,""]
[null,""]
[null,""]
[null,""]
[null,""]
[null,""]
[null,{"$f":"IF(ISBLANK(A4750),\"\",MID(A4750,1,10))","v":""}]
[null,""]
[null,""]
[null,""]
[null,""]
[null,""]
[null,""]
[null,""]
[null,""]
[null,""]
[null,""]
[null,""]
[null,""]
[null,""]
[null,""]
[null,""]
[null,""]
[null,""]
[null,""]
[null,""]
[null,""]
[null,""]
[null,""]
[null,""]
[null,""]
[null,""]
[null,""]
[null,""]
[null,""]
[null,""]
[null,""]
[null,""]
[null,""]
[null,""]
[null,""]
[null,""]
[null,""]
[null,""]
[null,""]
[null,""]
[null,""]
[null,""]
[null,""]
[null,""]
[null,""]
[null,""]
[null,""]
[null,""]
[null,""]
[null,""]
[null,""]
[null,""]
[null,""]
[null,""]
[null,""]
[null,""]
[null,""]
[null,""]
[null,""]
[null,""]
[null,""]
[null,""]
[null,""]
[null,""]
[null,{"$f":"IF(ISBLANK(A4814),\"\",MID(A4814,1,10))","v":""}]
[null,""]
[null,""]
[null,""]
[null,""]
[null,""]
[null,""]
[null,""]
[null,""]
[null,""]
[null,""]
[null,""]
[null,""]
[null,""]
[null,""]
[null,""]
[null,""]
[null,""]
[null,""]
[null,""]
[null,""]
[null,""]
[null,""]
[null,""]
[null,""]
[null,""]
[null,""]
[null,""]
[null,""]
[null,""]
[null,""]
[null,""]
[null,""]
[null,""]
[null,""]
[null,""]
[null,""]
[null,""]
[null,""]
[null,""]
[null,""]
[null,""]
[null,""]
[null,""]
[null,""]
[null,""]
[null,""]
[null,""]
[null,""]
[null,""]
[null,""]
[null,""]
[null,""]
[null,""]
[null,""]
[null,""]
[null,""]
[null,""]
[null,""]
[null,""]
[null,""]
[null,""]
[null,""]
[null,""]
[null,{"$f":"IF(ISBLANK(A4878),\"\",MID(A4878,1,10))","v":""}]
[null,""]
[null,""]
[null,""]
[null,""]
[null,""]
[null,""]
[null,""]
[null,""]
[null,""]
[null,""]
[null,""]
[null,""]
[null,""]
[null,""]
[null,""]
[null,""]
[null,""]
[null,""]
[null,""]
[null,""]
[null,""]
[null,""]
[null,""]
[null,""]
[null,""]
[null,""]
[null,""]
[null,""]
[null,""]
[null,""]
[null,""]
[null,""]
[null,""]
[null,""]
[null,""]
[null,""]
[null,""]
[null,""]
[null,""]
[null,""]
[null,""]
[null,""]
[null,""]
[null,""]
[null,""]
[null,""]
[null,""]
[null,""]
[null,""]
[null,""]
[null,""]
[null,""]
[null,""]
[null,""]
[null,""]
[null,""]
[null,""]
[null,""]
[null,""]
[null,""]
[null,""]
[null,""]
[null,""]
[null,{"$f":"IF(ISBLANK(A4942),\"\",MID(A4942,1,10))","v":""}]
[null,""]
[null,""]
[null,""]
[null,""]
[null,""]
[null,""]
[null,""]
[null,""]
[null,""]
[null,""]
[null,""]
[null,""]
[null,""]
[null,""]
[null,""]
[null,""]
[null,""]
[null,""]
[null,""]
[null,""]
[null,""]
[null,""]
[null,""]
[null,""]
[null,""]
[null,""]
[null,""]
[null,""]
[null,""]
[null,""]
[null,""]
[null,""]
[null,""]
[null,""]
[null,""]
[null,""]
[null,""]
[null,""]
[null,""]
[null,""]
[null,""]
[null,""]
[null,""]
[null,""]
[null,""]
[null,""]
[null,""]
[null,""]
[null,""]
[null,""]
[null,""]
[null,""]
[null,""]
[null,""]
[null,""]
[null,""]
[null,""]
[null,""]
[null,""]
[null,""]
[null,""]
[null,""]
[null,""]
[null,{"$f":"IF(ISBLANK(A5006),\"\",MID(A5006,1,10))","v":""}]
[null,""]
[null,""]
[null,""]
[null,""]
[null,""]
[null,""]
[null,""]
[null,""]
[null,""]
[null,""]
[null,""]
[null,""]
[null,""]
[null,""]
[null,""]
[null,""]
[null,""]
[null,""]
[null,""]
[null,""]
[null,""]
[null,""]
[null,""]
[null,""]
[null,""]
[null,""]
[null,""]
[null,""]
[null,""]
[null,""]
[null,""]
[null,""]
[null,""]
[null,""]
[null,""]
[null,""]
[null,""]
[null,""]
[null,""]
[null,""]
[null,""]
[null,""]
[null,""]
[null,""]
[null,""]
[null,""]
[null,""]
[null,""]
[null,""]
[null,""]
[null,""]
[null,""]
[null,""]
[null,""]
[null,""]
[null,""]
[null,""]
[null,""]
[null,""]
[null,""]
[null,""]
[null,""]
[null,""]
[null,{"$f":"IF(ISBLANK(A5070),\"\",MID(A5070,1,10))","v":""}]
[null,""]
[null,""]
[null,""]
[null,""]
[null,""]
[null,""]
[null,""]
[null,""]
[null,""]
[null,""]
[null,""]
[null,""]
[null,""]
[null,""]
[null,""]
[null,""]
[null,""]
[null,""]
[null,""]
[null,""]
[null,""]
[null,""]
[null,""]
[null,""]
[null,""]
[null,""]
[null,""]
[null,""]
[null,""]
[null,""]

{"sheet":"Base13","index":1,"n_rows":252,"n_cols":12,"rows_kept":252,"cut":false,"hidden":false,"merged":[]}
["2023-08-31"]
[]
["Post","base-itens","Løpetid","Pant","Portefølje","Verdsetting","SEKTOR","NÆRING","VALUTA","VALUTA10","VALUTA90","LAND"]
["63.a/b",null,"00 Ingen ","00 Ingen","000 Ingen","00 Ingen","00000 Usektorisert","000 Ingen","10 Norske kroner (NOK)","10 Norske kroner (NOK)","90 Ingen valutafordeling","00 Ingen landfordeling"]
["6100135600 Tapsnedskrivninger på utlån som er balanseført",{"$f":"MID(A5,1,10)","v":"6100135600"},"30 Ufordelt tom. 1 år","11 Pant i boligeiendom","010 Internasjonale reserver","10 Virkelig verdi","00820 Norske og utenlandske sentralbanker","011 Jordbruk og tilknyttede tjenester","30 Sum utenlandsk valuta ",null,null,"AD Andorra "]
["6200109800 Sum fordringer ekskl. derivater",{"$f":"MID(A6,1,10)","v":"6200109800"},"81 Over 1 år tom. 2 år","12 Pant i næringseiendom","090 Norges Bank, ekskl. internasjonsle resverver og SPU","30 Egenkapitalmodellen","00830 Norske og utenlandske sentralbanker og kredittinstitusjoner ","012 Skogbruk og tilknyttede tjenester ","31 Svenske kroner (SEK)",null,null,"AE De forente Arabiske Emirater, Abu Dhabi, Ajman, Dubai,Fujairah, Ras al-Khaymah, Sharjah, Um-al Quwain "]
["6300111100 Fordringer i NOK, Kontanter","6300111100","88 Over 2 år","50 Annen pant/sikkerhet",null,"50 kost, alle modeller","00840 Norske og utenlandkse kredittinstitusjoner","013 Fiske og fangst","32 Danske kroner (DKK)",null,null,"AF Afghanistan "]
["6300111600 Fordringer i NOK, Bankinnskudd","6300111600","90  Ufordelt","80 Uten pant/sikkerhet",null,null,"00880 Norske og utenlandske sektorer utenom sentralbanker og kredittinstitusjoner","014 Aquakultur (oppdrett og klekkerier)","33 Euro (EUR)",null,null,"AG Antigua og Barbuda "]
["6300122000 Fordringer i NOK, Aksjer, andeler og egenkapitalbevis","6300122000",null,null,null,null,"01000 Norske sektorer i alt","019 Bergverksdrift og -utvinning mv.","34 US-dollar (USD)",null,null,"AI Anguilla "]
["6300123000 Fordringer i NOK, Rentebærende omsettelige verdipapirer","6300123000",null,null,null,null,"01008    \"    - tilknyttede selskaper","022 Tjenester tilknyttet utvinning av råolje og naturgass","35 Japanske yen (JPY)",null,null,"AL Albania "]
["6300124000 Fordringer i NOK, Finansielle derivater","6300124000",null,null,null,null,"01009    \"    - konsernselskaper","023 Utvinning av råolje og naturgass","36 Britiske pund (GBP)",null,null,"AM Armenia "]
["6300135000 Fordringer i NOK, Utlån, balanseført verdi","6300135000",null,null,null,null,"01010    \"    - ekskl. tilkn. og konsernselskaper","025 Industri","37 Sveitserfranc (CHF)",null,null,"AO Angola "]
["6300148100 Fordringer i NOK, Fordringer på IMF (gjelder kun Norges Bank)","6300148100",null,null,null,null,"03300 Norske kredittinstitusjoner","033 Bygging av skip og båter","39 Sum andre utenlandske valutaer",null,null,"AR Argentina "]
["6300148200 Fordringer i NOK, Andre fordringer","6300148200",null,null,null,null,"08000 Ufordelt sektor","035 El-, gass-, damp- og varmtvannsforsyning","90 Ingen valutafordeling",null,null,"AS Amerikanske Samoaøyer "]
["6300148900 Fordringer i NOK, Andre eiendeler","6300148900",null,null,null,null,"08800 Norske sektorer utenom kredittinstitusjoner","036 Vannforsyning, avløps- og renovasjonsvirksomhet",null,null,null,"AT Østerrike "]
["6300211100 Fordringer i utenlandsk valuta, Kontanter","6300211100",null,null,null,null,"09300 Utenlandske kredittinstitusjoner","041 Utvikling av byggeprosjekter",null,null,null,"AU Australia "]
["6300211600 Fordringer i utenlandsk valuta, Bankinnskudd","6300211600",null,null,null,null,"09800 Utenlandske sektorer utenom kredittinstitusjoner","043 Bygge- og anleggsvirksomhet ellers",null,null,null,"AW Aruba "]
["6300222000 Fordringer i utenlandsk valuta, Aksjer, andeler og egenkapitalbevis","6300222000",null,null,null,null,"11100 Statens forretningsdrift","045 Varehandel, reparasjon av motorvogner",null,null,null,"AZ Aserbajdsjan "]
["6300223000 Fordringer i utenlandsk valuta, Rentebærende omsettelige verdipapirer","6300223000",null,null,null,null,"11200 Statlige eide aksjeselskaper","049 Utenriks sjøfart og rørtransport",null,null,null,"BA Bosnia Hercegovina "]
["6300224000 Fordringer i utenlandsk valuta, Finansielle derivater","6300224000",null,null,null,null,"11208     \"    - tilknyttede selskaper","053 Transport ellers og lagring",null,null,null,"BB Barbados "]
["6300235000 Fordringer i utenlandsk valuta, Utlån, balanseført verdi","6300235000",null,null,null,null,"15100 Kommunale foretak med ubegrenset ansvar","055 Overnattings- og serveringsvirksomhet",null,null,null,"BD Bangladesh "]
["6300248100 Fordringer i utenlandsk valuta, Fordringer på IMF (gjelder kun Norges Bank)","6300248100",null,null,null,null,"15200 Kommunalt eide aksjeselskaper m.m.","063 Informasjon og kommunikasjon",null,null,null,"BE Belgia "]
["6300248200 Fordringer i utenlandsk valuta, Andre fordringer","6300248200",null,null,null,null,"15208     \"    - tilknyttede selskaper m.m.","068 Omsetning og drift av fast eiendom",null,null,null,"BF Burkina Faso "]
["6300248900 Fordringer i utenlandsk valuta, Andre eiendeler","6300248900",null,null,null,null,"21000 Priv. aksjeselskaper mv","073 Faglig og finansiell tjenesteyting",null,null,null,"BG Bulgaria "]
["6300359000 Ikke-finansielle eiendeler, Realkapital og immaterielle eiendeler","6300359000",null,null,null,null,"21008     \"    - tilknyttede selskaper mv ","083 Forretningsmessig tjenesteyting",null,null,null,"BH Bahrain "]
["6300461000 Gjeld i NOK, Innskudd","6300461000",null,null,null,null,"21009     \"    - konsernselskaper","093 Tjenesteytende næringer ellers",null,null,null,"BI Burundi "]
["6300403000 Gjeld i NOK, Lån i form av rentebærende omsettelige verdipapirer","6300403000",null,null,null,null,"23000 Personlige foretak",null,null,null,null,"BJ Benin "]
["6300474000 Gjeld i NOK, Finansielle derivater","6300474000",null,null,null,null,"23008     \"    - tilknyttede selskaper",null,null,null,null,"BL Saint Barthelemy"]
["6300405000 Gjeld i NOK, Andre lån","6300405000",null,null,null,null,"23009     \"    - konsernselskaper",null,null,null,null,"BM Bermuda "]
["6300478100 Gjeld i NOK, Gjeld til IMF (gjelder kun Norges Bank)","6300478100",null,null,null,null,"25000 Private produsentorienterte organisasjoner uten profittformål",null,null,null,null,"BN Brunei "]
["6300478200 Gjeld i NOK, Annen gjeld","6300478200",null,null,null,null,"31000 Norges Bank",null,null,null,null,"BO Bolivia "]
["6300561000 Gjeld i utenlandsk valuta, Innskudd","6300561000",null,null,null,null,"32000 Banker",null,null,null,null,"BQ Bonaire, Saba, St.Eustatius "]
["6300503000 Gjeld i utenlandsk valuta, Lån i form av rentebærende omsettelige verdipapirer","6300503000",null,null,null,null,"32008     \"    - tilknyttede selskaper",null,null,null,null,"BR Brasil "]
["6300574000 Gjeld i utenlandsk valuta, Finansielle derivater","6300574000",null,null,null,null,"32009     \"    - konsernselskaper",null,null,null,null,"BS Bahamas "]
["6300505000 Gjeld i utenlandsk valuta, Andre lån","6300505000",null,null,null,null,"35000 Kredittforetak",null,null,null,null,"BT Bhutan "]
["6300578100 Gjeld i utenlandsk valuta, Gjeld til IMF (gjelder kun Norges Bank)","6300578100",null,null,null,null,"35008     \"    - tilknyttede selskaper",null,null,null,null,"BW Botswana "]
["6300578200 Gjeld i utenlandsk valuta, Annen gjeld","6300578200",null,null,null,null,"35009     \"    - konsernselskaper",null,null,null,null,"BY Hviterussland (Belarus) "]
["6300992110 Egenkapital, Selskapskapital, aksjekapital - eierandelskapital, netto","6300992110",null,null,null,null,"36000 Finansieringsforetak",null,null,null,null,"BZ Belize "]
["6300992500 Egenkapital, Fondsobligasjonskapital, netto","6300992500",null,null,null,null,"36008     \"    - tilknyttede selskaper",null,null,null,null,"CA Canada "]
["6300992900 Annen egenkapital","6300992900",null,null,null,null,"36009     \"    - konsernselskaper",null,null,null,null,"CC Kokosøyene "]
["6700160021 Dekket av norsk innskuddsgarantiordning i norsk del av virksomheten (for innskudd inntil 2 mill NOK)","6700160021",null,null,null,null,"39000 Statlige låneinstitutter mv.",null,null,null,null,"CD Kongo, Den demokratiske republikken "]
["6700160023 Dekket av norsk innskuddsgarantiordning i utenlandsk filial i noek bank (for innskudd inntil 10 000 EUR)",{"$f":"MID(A42,1,10)","v":"6700160023"},null,null,null,null,"39008     \"    - tilknyttede selskaper",null,null,null,null,"CF Sentralafrikanske republikk "]
["6700160033 Dekket av norsk innskuddsgarantiordning i grensekryssende virksomhet uten etablering (innskudd inntil 100 000 EUR)",{"$f":"MID(A43,1,10)","v":"6700160033"},null,null,null,null,"41000 Finansielle holdingselskaper",null,null,null,null,"CG Kongo, Republikken "]
["6708060021 Fullt dekket av norsk innskuddsgarantiordning i norsk del av virksomheten (for innskudd inntil 2 mill NOK)",{"$f":"MID(A44,1,10)","v":"6708060021"},null,null,null,null,"41008     \"    - tilknyttede selskaper",null,null,null,null,"CH Sveits "]
["6708060022 Ikke fullt dekket av norsk innskuddsgarantiordning i norsk del av virksomheten (for innskudd over 2 mill. NOK)",{"$f":"MID(A45,1,10)","v":"6708060022"},null,null,null,null,"41009     \"    - konsernselskaper",null,null,null,null,"CI Elfenbenskysten "]
["6708060023 Fullt dekket av norsk innskuddsgarantiordning i utenlandsk filial av norsk bank (for innskudd inntil 100 000 EUR)",{"$f":"MID(A46,1,10)","v":"6708060023"},null,null,null,null,"43000 Verdipapirfond",null,null,null,null,"CK Cookøyene "]
["6708060024 Ikke fullt dekket av norsk innskuddsgarantiordning i utenlandsk filial av norsk bank (for innskudd inntil 100 000 EUR)",{"$f":"MID(A47,1,10)","v":"6708060024"},null,null,null,null,"45000 Investeringsselskaper og aktive eierfond/PE-fond",null,null,null,null,"CL Chile "]
["6708060033 Fullt dekket av norsk innskuddsgarantiordning i grensekryssende virksomhet uten etablering (for innskudd inntil 100 000 EUR)",{"$f":"MID(A48,1,10)","v":"6708060033"},null,null,null,null,"45008     \"    - tilknyttede selskaper",null,null,null,null,"CM Kamerun "]
["6708060034 Ikke fullt dekket av norsk innskuddsgarantiordning i grensekryssende virksomhet uten etablering (for innskudd inntil 100 000 EUR)",{"$f":"MID(A49,1,10)","v":"6708060034"},null,null,null,null,"45009     \"    - konsernselskap",null,null,null,null,"CN Kina, Folkerepublikken "]
[64,null,null,null,null,null,"49000 Øvrige finansielle foretak unntatt forsikring",null,null,null,null,"CO Colombia "]
["6100135600 Tapsnedskrivninger på utlån som er balanseført","6100135600",null,null,null,null,"49008     \"    - tilknyttede selskaper",null,null,null,null,"CR Costa Rica "]
["6400111100 Fordringer i NOK, Kontanter","6400111100",null,null,null,null,"49009     \"    - konsernselskaper",null,null,null,null,"CU Cuba "]
["6400111600 Fordringer i NOK, Bankinnskudd","6400111600",null,null,null,null,"55000 Livsforsikringsselskaper og pensjonskasser",null,null,null,null,"CV Kapp Verde "]
["6400122000 Fordringer i NOK, Aksjer, andeler og egenkapitalbevis","6400122000",null,null,null,null,"55008     \"     - tilknyttede selskaper",null,null,null,null,"CW Curacao "]
["6400123000 Fordringer i NOK, Rentebærende omsettelige verdipapirer","6400123000",null,null,null,null,"55009     \"     - konsernselskaper",null,null,null,null,"CX Christmas Island "]
["6400124000 Fordringer i NOK, Finansielle derivater","6400124000",null,null,null,null,"57000 Skadeforsikringsselskaper",null,null,null,null,"CY Kypros "]
["6400135000 Fordringer i NOK, Utlån, balanseført verdi","6400135000",null,null,null,null,"57008     \"    - tilknyttede selskaper",null,null,null,null,"CZ Tsjekkia "]
["6400148200 Fordringer i NOK, Andre fordringer","6400148200",null,null,null,null,"57009     \"    - konsernselskaper",null,null,null,null,"DE Tyskland "]
["6400148900 Fordringer i NOK, Andre eiendeler","6400148900",null,null,null,null,"61000 Stats- og trygdeforvaltningen",null,null,null,null,"DJ Djibouti "]
["6400211100 Fordringer i utenlandsk valuta, Kontanter","6400211100",null,null,null,null,"61008     \"    - tilknyttede selskaper",null,null,null,null,"DK Danmark "]
["6400211600 Fordringer i utenlandsk valuta, Bankinnskudd","6400211600",null,null,null,null,"65000 Kommuneforvaltningen",null,null,null,null,"DM Dominicia "]
["6400222000 Fordringer i utenlandsk valuta, Aksjer, andeler og egenkapitalbevis","6400222000",null,null,null,null,"65008     \"    - tilknyttede selskaper",null,null,null,null,"DO Den Dominikanske Republikk "]
["6400223000 Fordringer i utenlandsk valuta, Rentebærende omsettelige verdipapirer","6400223000",null,null,null,null,"70000 Ideelle organisasjoner",null,null,null,null,"DZ Algerie "]
["6400224000 Fordringer i utenlandsk valuta, Finansielle derivater","6400224000",null,null,null,null,"70008     \"    - tilknyttede selskaper",null,null,null,null,"EC Ecuador "]
["6400235000 Fordringer i utenlandsk valuta, Utlån, balanseført verdi","6400235000",null,null,null,null,"70009     \"    - konsernselskaper",null,null,null,null,"EE Estland "]
["6400248200 Fordringer i utenlandsk valuta, Andre fordringer","6400248200",null,null,null,null,"82000 Personlig næringsdrivende",null,null,null,null,"EG Egypt "]
["6400248900 Fordringer i utenlandsk valuta, Andre eiendeler","6400248900",null,null,null,null,"83000 Borettslag og lignende",null,null,null,null,"EH Vest-Sahara "]
["6400359000 Ikke-finansielle eiendeler, Realkapital og immaterielle eiendeler","6400359000",null,null,null,null,"85000 Lønnstakere, pensjonister, trygdede, studenter o.a.",null,null,null,null,"ER Eritrea "]
["6400461000 Gjeld i NOK, Innskudd","6400461000",null,null,null,null,"90000 Utenlandske sektorer i alt",null,null,null,null,"ES Spania med Balearene og Kanariøyene"]
["6400403000 Gjeld i NOK, Lån i form av rentebærende omsettelige verdipapirer","6400403000",null,null,null,null,"90008     \"    - tilknyttede selskaper",null,null,null,null,"ET Etiopia "]
["6400474000 Gjeld i NOK, Finansielle derivater","6400474000",null,null,null,null,"90009     \"    - konsernselskaper",null,null,null,null,"FI Finland "]
["6400405000 Gjeld i NOK, Andre lån","6400405000",null,null,null,null,"90010     \"    - andre enn konsern ogtilknyttede selskaper",null,null,null,null,"FJ Fiji "]
["6400478200 Gjeld i NOK, Annen gjeld","6400478200",null,null,null,null,"91000 Utenlandske ikke-finansielle foretak",null,null,null,null,"FK Falklandsøyene med Sør-Georgia "]
["6400561000 Gjeld i utenlandsk valuta, Innskudd","6400561000",null,null,null,null,"91008     \"    - tilknyttede selskaper",null,null,null,null,"FM Mikronesia føderasjonen "]
["6400503000 Gjeld i utenlandsk valuta, Lån i form av rentebærende omsettelige verdipapirer","6400503000",null,null,null,null,"91009     \"    - konsenselskaper",null,null,null,null,"FO Færøyene "]
["6400574000 Gjeld i utenlandsk valuta, Finansielle derivater","6400574000",null,null,null,null,"92000 Utenlandske sentralbanker",null,null,null,null,"FR Frankrike "]
["6400505000 Gjeld i utenlandsk valuta, Andre lån","6400505000",null,null,null,null,"93000 Utenlandske kredittinstitusjoner ",null,null,null,null,"GA Gabon "]
["6400578200 Gjeld i utenlandsk valuta, Annen gjeld",{"$f":"MID(A78,1,10)","v":"6400578200"},null,null,null,null,"93008     \"    - tilknyttede selskaper",null,null,null,null,"GB Storbritannia "]
["6400992110 Egenkapital, Selskapskapital, aksjekapital - eierandelskapital, netto","6400992110",null,null,null,null,"93009     \"    - konsernselskaper",null,null,null,null,"GD Grenada "]
["6400992500 Egenkapital, Fondsobligasjonskapital, netto","6400992500",null,null,null,null,"94000 Multilaterale utviklingsbanker",null,null,null,null,"GE Georgia "]
["6400992900 Annen egenkapital","6400992900",null,null,null,null,"95000 Utenlandske andre finansielle foretak",null,null,null,null,"GF Fransk Guyana Cayenne "]
[null,null,null,null,null,null,"95008     \"    - tilknyttede selskaper",null,null,null,null,"GG Guernsey "]
[null,"",null,null,null,null,"95009     \"     - konsernselskaper",null,null,null,null,"GH Ghana "]
[null,null,null,null,null,null,"96000 Utenlandsk offentlig forvaltning",null,null,null,null,"GI Gibraltar "]
[null,null,null,null,null,null,"98000 Utenlandske husholdninger",null,null,null,null,"GL Grønland "]
[null,null,null,null,null,null,null,null,null,null,null,"GM Gambia "]
[null,null,null,null,null,null,null,null,null,null,null,"GN Guinea "]
[null,null,null,null,null,null,null,null,null,null,null,"GP Guadeloupe Marie-Galante, Les Saintes, La Desirade, Petite Terre "]
[null,null,null,null,null,null,null,null,null,null,null,"GQ Ekvatorial-Guinea med Fernando Po "]
[null,null,null,null,null,null,null,null,null,null,null,"GR Hellas "]
[null,null,null,null,null,null,null,null,null,null,null,"GS Sør-Georgia "]
[null,null,null,null,null,null,null,null,null,null,null,"GT Guatemala "]
[null,null,null,null,null,null,null,null,null,null,null,"GU Guam "]
[null,null,null,null,null,null,null,null,null,null,null,"GW Guinea-Bissau "]
[null,null,null,null,null,null,null,null,null,null,null,"GY Guyana "]
[null,null,null,null,null,null,null,null,null,null,null,"HK Hong Kong SAR "]
[null,null,null,null,null,null,null,null,null,null,null,"HM Heard- og McDonaldøyene "]
[null,null,null,null,null,null,null,null,null,null,null,"HN Honduras "]
[null,null,null,null,null,null,null,null,null,null,null,"HR Kroatia "]
[null,null,null,null,null,null,null,null,null,null,null,"HT Haiti "]
[null,null,null,null,null,null,null,null,null,null,null,"HU Ungarn "]
[null,null,null,null,null,null,null,null,null,null,null,"ID Indonesia, herunder Vest-Irian "]
[null,null,null,null,null,null,null,null,null,null,null,"IE Irland "]
[null,null,null,null,null,null,null,null,null,null,null,"IL Israel "]
[null,null,null,null,null,null,null,null,null,null,null,"IM Isle of Man "]
[null,null,null,null,null,null,null,null,null,null,null,"IN India med Andamanene, Lakkadivene, Nikobarene, Minicoy og Aminidivene "]
[null,null,null,null,null,null,null,null,null,null,null,"IO Bririsk territorium i Det Indiske Hav "]
[null,null,null,null,null,null,null,null,null,null,null,"IQ Irak "]
[null,null,null,null,null,null,null,null,null,null,null,"IR Iran "]
[null,null,null,null,null,null,null,null,null,null,null,"IS Island "]
[null,null,null,null,null,null,null,null,null,null,null,"IT Italia "]
[null,null,null,null,null,null,null,null,null,null,null,"JE Jersey "]
[null,null,null,null,null,null,null,null,null,null,null,"JM Jamaica "]
[null,null,null,null,null,null,null,null,null,null,null,"JO Jordan "]
[null,null,null,null,null,null,null,null,null,null,null,"JP Japan "]
[null,null,null,null,null,null,null,null,null,null,null,"KE Kenya "]
[null,null,null,null,null,null,null,null,null,null,null,"KG Kirgistan "]
[null,null,null,null,null,null,null,null,null,null,null,"KH Kambodsja "]
[null,null,null,null,null,null,null,null,null,null,null,"KI Kiribati "]
[null,null,null,null,null,null,null,null,null,null,null,"KM Komorene "]
[null,null,null,null,null,null,null,null,null,null,null,"KN St. Kitts og Nevis "]
[null,null,null,null,null,null,null,null,null,null,null,"KP Korea, Nord- "]
[null,null,null,null,null,null,null,null,null,null,null,"KR Korea, Sør- "]
[null,null,null,null,null,null,null,null,null,null,null,"KW Kuwait "]
[null,null,null,null,null,null,null,null,null,null,null,"KY Caymanøyene "]
[null,null,null,null,null,null,null,null,null,null,null,"KZ Kasakhstan "]
[null,null,null,null,null,null,null,null,null,null,null,"LA Laos "]
[null,null,null,null,null,null,null,null,null,null,null,"LB Libanon "]
[null,null,null,null,null,null,null,null,null,null,null,"LC St. Lucia "]
[null,null,null,null,null,null,null,null,null,null,null,"LI Liechtenstein "]
[null,null,null,null,null,null,null,null,null,null,null,"LK Sri Lanka "]
[null,null,null,null,null,null,null,null,null,null,null,"LR Liberia "]
[null,null,null,null,null,null,null,null,null,null,null,"LS Lesotho "]
[null,null,null,null,null,null,null,null,null,null,null,"LT Litauen "]
[null,null,null,null,null,null,null,null,null,null,null,"LU Luxembourg "]
[null,null,null,null,null,null,null,null,null,null,null,"LV Latvia "]
[null,null,null,null,null,null,null,null,null,null,null,"LY Libya "]
[null,null,null,null,null,null,null,null,null,null,null,"MA Marokko "]
[null,null,null,null,null,null,null,null,null,null,null,"MC Monaco "]
[null,null,null,null,null,null,null,null,null,null,null,"MD Moldova "]
[null,null,null,null,null,null,null,null,null,null,null,"ME Montenegro "]
[null,null,null,null,null,null,null,null,null,null,null,"MF Saint Martin (fransk del) "]
[null,null,null,null,null,null,null,null,null,null,null,"MG Madagaskar "]
[null,null,null,null,null,null,null,null,null,null,null,"MH Marshalløyene "]
[null,null,null,null,null,null,null,null,null,null,null,"MK Makedonia "]
[null,null,null,null,null,null,null,null,null,null,null,"ML Mali "]
[null,null,null,null,null,null,null,null,null,null,null,"MM Myanmar (tidl.Burma) "]
[null,null,null,null,null,null,null,null,null,null,null,"MN Mongolia "]
[null,null,null,null,null,null,null,null,null,null,null,"MO Macao "]
[null,null,null,null,null,null,null,null,null,null,null,"MP Nord-Marianene "]
[null,null,null,null,null,null,null,null,null,null,null,"MQ Martinique "]
[null,null,null,null,null,null,null,null,null,null,null,"MR Mauritania "]
[null,null,null,null,null,null,null,null,null,null,null,"MS Montserrat "]
[null,null,null,null,null,null,null,null,null,null,null,"MT Malta med Gozo & Comino "]
[null,null,null,null,null,null,null,null,null,null,null,"MU Mauritius "]
[null,null,null,null,null,null,null,null,null,null,null,"MV Maldivene "]
[null,null,null,null,null,null,null,null,null,null,null,"MW Malawi "]
[null,null,null,null,null,null,null,null,null,null,null,"MX Mexico "]
[null,null,null,null,null,null,null,null,null,null,null,"MY Malaysia "]
[null,null,null,null,null,null,null,null,null,null,null,"MZ Mozambique "]
[null,null,null,null,null,null,null,null,null,null,null,"NA Namibia "]
[null,null,null,null,null,null,null,null,null,null,null,"NC Ny-Kaledonia "]
[null,null,null,null,null,null,null,null,null,null,null,"NE Niger "]
[null,null,null,null,null,null,null,null,null,null,null,"NF Norfolkøya "]
[null,null,null,null,null,null,null,null,null,null,null,"NG Nigeria "]
[null,null,null,null,null,null,null,null,null,null,null,"NI Nicaragua "]
[null,null,null,null,null,null,null,null,null,null,null,"NL Nederland "]
[null,null,null,null,null,null,null,null,null,null,null,"NO Norge"]
[null,null,null,null,null,null,null,null,null,null,null,"NP Nepal "]
[null,null,null,null,null,null,null,null,null,null,null,"NR Nauru "]
[null,null,null,null,null,null,null,null,null,null,null,"NU Niue "]
[null,null,null,null,null,null,null,null,null,null,null,"NZ New Zealand "]
[null,null,null,null,null,null,null,null,null,null,null,"OM Oman "]
[null,null,null,null,null,null,null,null,null,null,null,"PA Panama "]
[null,null,null,null,null,null,null,null,null,null,null,"PE Peru "]
[null,null,null,null,null,null,null,null,null,null,null,"PF Fransk Polynesia "]
[null,null,null,null,null,null,null,null,null,null,null,"PG Papua Ny-Guinea "]
[null,null,null,null,null,null,null,null,null,null,null,"PH Filippinene "]
[null,null,null,null,null,null,null,null,null,null,null,"PK Pakistan "]
[null,null,null,null,null,null,null,null,null,null,null,"PL Polen "]
[null,null,null,null,null,null,null,null,null,null,null,"PM St. Pierre og  Miquelon "]
[null,null,null,null,null,null,null,null,null,null,null,"PN Pitcairn "]
[null,null,null,null,null,null,null,null,null,null,null,"PR Puerto Rico "]
[null,null,null,null,null,null,null,null,null,null,null,"PS Vestbredden/Gazastripen "]
[null,null,null,null,null,null,null,null,null,null,null,"PT Portugal med Azorene og Madeira "]
[null,null,null,null,null,null,null,null,null,null,null,"PU USA Pacific Islands "]
[null,null,null,null,null,null,null,null,null,null,null,"PW Palau "]
[null,null,null,null,null,null,null,null,null,null,null,"PY Paraguay "]
[null,null,null,null,null,null,null,null,null,null,null,"QA Qatar "]
[null,null,null,null,null,null,null,null,null,null,null,"RE Reunion "]
[null,null,null,null,null,null,null,null,null,null,null,"RO Romania "]
[null,null,null,null,null,null,null,null,null,null,null,"RS Serbia "]
[null,null,null,null,null,null,null,null,null,null,null,"RU Russland "]
[null,null,null,null,null,null,null,null,null,null,null,"RW Rwanda "]
[null,null,null,null,null,null,null,null,null,null,null,"SA Saudi-Arabia "]
[null,null,null,null,null,null,null,null,null,null,null,"SB Salomonøyene "]
[null,null,null,null,null,null,null,null,null,null,null,"SC Seychellene "]
[null,null,null,null,null,null,null,null,null,null,null,"SD Sudan "]
[null,null,null,null,null,null,null,null,null,null,null,"SE Sverige "]
[null,null,null,null,null,null,null,null,null,null,null,"SG Singapore "]
[null,null,null,null,null,null,null,null,null,null,null,"SH St. Helena "]
[null,null,null,null,null,null,null,null,null,null,null,"SI Slovenia "]
[null,null,null,null,null,null,null,null,null,null,null,"SK Slovakia "]
[null,null,null,null,null,null,null,null,null,null,null,"SL Sierra Leone "]
[null,null,null,null,null,null,null,null,null,null,null,"SM San Marino "]
[null,null,null,null,null,null,null,null,null,null,null,"SN Senegal "]
[null,null,null,null,null,null,null,null,null,null,null,"SO Somalia "]
[null,null,null,null,null,null,null,null,null,null,null,"SR Surinam "]
[null,null,null,null,null,null,null,null,null,null,null,"SS Sør-Sudan "]
[null,null,null,null,null,null,null,null,null,null,null,"ST Sao Tome og Principe "]
[null,null,null,null,null,null,null,null,null,null,null,"SV El Salvador "]
[null,null,null,null,null,null,null,null,null,null,null,"SX Sint Maarten "]
[null,null,null,null,null,null,null,null,null,null,null,"SY Syria "]
[null,null,null,null,null,null,null,null,null,null,null,"SZ Swaziland "]
[null,null,null,null,null,null,null,null,null,null,null,"TC Turks- og Caicosøyene "]
[null,null,null,null,null,null,null,null,null,null,null,"TD Tsjad "]
[null,null,null,null,null,null,null,null,null,null,null,"TF Franske Antiller "]
[null,null,null,null,null,null,null,null,null,null,null,"TG Togo "]
[null,null,null,null,null,null,null,null,null,null,null,"TH Thailand "]
[null,null,null,null,null,null,null,null,null,null,null,"TJ Tadzjikistan "]
[null,null,null,null,null,null,null,null,null,null,null,"TK Tokelau "]
[null,null,null,null,null,null,null,null,null,null,null,"TL Øst-Timor "]
[null,null,null,null,null,null,null,null,null,null,null,"TM Turkmenistan "]
[null,null,null,null,null,null,null,null,null,null,null,"TN Tunisia "]
[null,null,null,null,null,null,null,null,null,null,null,"TO Tonga "]
[null,null,null,null,null,null,null,null,null,null,null,"TR Tyrkia "]
[null,null,null,null,null,null,null,null,null,null,null,"TT Trinidad og Tobago "]
[null,null,null,null,null,null,null,null,null,null,null,"TV Tuvalu "]
[null,null,null,null,null,null,null,null,null,null,null,"TW Taiwan "]
[null,null,null,null,null,null,null,null,null,null,null,"TZ Tanzania "]
[null,null,null,null,null,null,null,null,null,null,null,"UA Ukrania "]
[null,null,null,null,null,null,null,null,null,null,null,"UG Uganda "]
[null,null,null,null,null,null,null,null,null,null,null,"UM USA mindre utenforliggende øyer "]
[null,null,null,null,null,null,null,null,null,null,null,"US USA med Puerto Rico "]
[null,null,null,null,null,null,null,null,null,null,null,"UY Uruguay "]
[null,null,null,null,null,null,null,null,null,null,null,"UZ Uzbekistan "]
[null,null,null,null,null,null,null,null,null,null,null,"VA Vatikanstaten "]
[null,null,null,null,null,null,null,null,null,null,null,"VC St. Vincent "]
[null,null,null,null,null,null,null,null,null,null,null,"VE Venezuela "]
[null,null,null,null,null,null,null,null,null,null,null,"VG Jomfruøyene, Britiske "]
[null,null,null,null,null,null,null,null,null,null,null,"VI Jomfruøyene, US "]
[null,null,null,null,null,null,null,null,null,null,null,"VN Vietnam "]
[null,null,null,null,null,null,null,null,null,null,null,"VU Vanuatu "]
[null,null,null,null,null,null,null,null,null,null,null,"WF Wallis og Futunaøyene "]
[null,null,null,null,null,null,null,null,null,null,null,"WS Samoa "]
[null,null,null,null,null,null,null,null,null,null,null,"XX Uoppgitt "]
[null,null,null,null,null,null,null,null,null,null,null,"YE Yemen "]
[null,null,null,null,null,null,null,null,null,null,null,"YT Mayotte "]
[null,null,null,null,null,null,null,null,null,null,null,"ZA Sør-Afrika "]
[null,null,null,null,null,null,null,null,null,null,null,"ZM Zambia "]
[null,null,null,null,null,null,null,null,null,null,null,"ZW Zimbabwe "]
[null,null,null,null,null,null,null,null,null,null,null,"ZZ Internasjonale organisasjoner "]